Workbook

Sheet Рейтинг_ОДи
A1: Ведомство | B1: Статус | C1: Соцсети | D1: Общ.советы | E1: Average | F1: Индекс
A2: Главное управление специальных программ Президента Российской Федерации (ГУСП) | B2: През | C2: 0 | D2: - | E2: =AVERAGE(C2:D2) -> 0 | F2: =IF(E2>=0.7,"A",IF(E2>=0.4,"B","C")) -> C
A3: Государственная фельдъегерская служба Российской Федерации (ГФС России) | B3: През | C3: 0 | D3: - | E3: =AVERAGE(C3:D3) -> 0 | F3: =IF(E3>=0.7,"A",IF(E3>=0.4,"B","C")) -> C
A4: Казначейство России | B4: Прав | C4: 0.474 | D4: 0.5454545455 | E4: =AVERAGE(C4:D4) -> 0.5097272727 | F4: =IF(E4>=0.7,"A",IF(E4>=0.4,"B","C")) -> B
A5: МВД России | B5: През | C5: 0.702 | D5: 0.4545454545 | E5: =AVERAGE(C5:D5) -> 0.5782727273 | F5: =IF(E5>=0.7,"A",IF(E5>=0.4,"B","C")) -> B
A6: МИД России | B6: През | C6: 0.526 | D6: - | E6: =AVERAGE(C6:D6) -> 0.526 | F6: =IF(E6>=0.7,"A",IF(E6>=0.4,"B","C")) -> B
A7: Минвостокразвития России | B7: Прав | C7: 0.421 | D7: 0.4181818182 | E7: =AVERAGE(C7:D7) -> 0.4195909091 | F7: =IF(E7>=0.7,"A",IF(E7>=0.4,"B","C")) -> B
A8: Минздрав России | B8: Прав | C8: 0.789 | D8: 0.4909090909 | E8: =AVERAGE(C8:D8) -> 0.6399545455 | F8: =IF(E8>=0.7,"A",IF(E8>=0.4,"B","C")) -> B
A9: Минкультуры России | B9: Прав | C9: 0.544 | D9: 0.5272727273 | E9: =AVERAGE(C9:D9) -> 0.5356363636 | F9: =IF(E9>=0.7,"A",IF(E9>=0.4,"B","C")) -> B
A10: Минобороны России | B10: През | C10: 0.825 | D10: 0.3636363636 | E10: =AVERAGE(C10:D10) -> 0.5943181818 | F10: =IF(E10>=0.7,"A",IF(E10>=0.4,"B","C")) -> B
A11: Минобрнауки России | B11: Прав | C11: 0.684 | D11: 0.4363636364 | E11: =AVERAGE(C11:D11) -> 0.5601818182 | F11: =IF(E11>=0.7,"A",IF(E11>=0.4,"B","C")) -> B
A12: Минприроды России | B12: Прав | C12: 0.737 | D12: 0.6181818182 | E12: =AVERAGE(C12:D12) -> 0.6775909091 | F12: =IF(E12>=0.7,"A",IF(E12>=0.4,"B","C")) -> B
A13: Минпромторг России | B13: Прав | C13: 0.474 | D13: 0.3272727273 | E13: =AVERAGE(C13:D13) -> 0.4006363636 | F13: =IF(E13>=0.7,"A",IF(E13>=0.4,"B","C")) -> B
A14: Минпросвещения России | B14: Прав | C14: 0.772 | D14: 0.5818181818 | E14: =AVERAGE(C14:D14) -> 0.6769090909 | F14: =IF(E14>=0.7,"A",IF(E14>=0.4,"B","C")) -> B
A15: Минсельхоз России | B15: Прав | C15: 0.684 | D15: 0.5454545455 | E15: =AVERAGE(C15:D15) -> 0.6147272727 | F15: =IF(E15>=0.7,"A",IF(E15>=0.4,"B","C")) -> B
A16: Минспорт России | B16: Прав | C16: 0.614 | D16: 0.6181818182 | E16: =AVERAGE(C16:D16) -> 0.6160909091 | F16: =IF(E16>=0.7,"A",IF(E16>=0.4,"B","C")) -> B
A17: Минстрой России | B17: Прав | C17: 0.632 | D17: 0.8181818182 | E17: =AVERAGE(C17:D17) -> 0.7250909091 | F17: =IF(E17>=0.7,"A",IF(E17>=0.4,"B","C")) -> A
A18: Минтранс России | B18: Прав | C18: 0.649 | D18: 0.4545454545 | E18: =AVERAGE(C18:D18) -> 0.5517727273 | F18: =IF(E18>=0.7,"A",IF(E18>=0.4,"B","C")) -> B
A19: Минтруд России | B19: Прав | C19: 0.737 | D19: 0.6 | E19: =AVERAGE(C19:D19) -> 0.6685 | F19: =IF(E19>=0.7,"A",IF(E19>=0.4,"B","C")) -> B
A20: Минфин России | B20: Прав | C20: 0.614 | D20: 0.4181818182 | E20: =AVERAGE(C20:D20) -> 0.5160909091 | F20: =IF(E20>=0.7,"A",IF(E20>=0.4,"B","C")) -> B
A21: Минцифры России | B21: Прав | C21: 0.667 | D21: 0.4363636364 | E21: =AVERAGE(C21:D21) -> 0.5516818182 | F21: =IF(E21>=0.7,"A",IF(E21>=0.4,"B","C")) -> B
A22: Минэкономразвития России | B22: Прав | C22: 0.719 | D22: 0.4727272727 | E22: =AVERAGE(C22:D22) -> 0.5958636364 | F22: =IF(E22>=0.7,"A",IF(E22>=0.4,"B","C")) -> B
A23: Минэнерго России | B23: Прав | C23: 0.895 | D23: 0.4727272727 | E23: =AVERAGE(C23:D23) -> 0.6838636364 | F23: =IF(E23>=0.7,"A",IF(E23>=0.4,"B","C")) -> B
A24: Минюст России | B24: През | C24: 0 | D24: 0.1818181818 | E24: =AVERAGE(C24:D24) -> 0.09090909091 | F24: =IF(E24>=0.7,"A",IF(E24>=0.4,"B","C")) -> C
A25: МЧС России | B25: През | C25: 0.737 | D25: 0.4 | E25: =AVERAGE(C25:D25) -> 0.5685 | F25: =IF(E25>=0.7,"A",IF(E25>=0.4,"B","C")) -> B
A26: Росавиация | B26: Прав | C26: 0.211 | D26: 0.5454545455 | E26: =AVERAGE(C26:D26) -> 0.3782272727 | F26: =IF(E26>=0.7,"A",IF(E26>=0.4,"B","C")) -> C
A27: Росавтодор | B27: Прав | C27: 1 | D27: 0.4727272727 | E27: =AVERAGE(C27:D27) -> 0.7363636364 | F27: =IF(E27>=0.7,"A",IF(E27>=0.4,"B","C")) -> A
A28: Росаккредитация | B28: Прав | C28: 0.579 | D28: 0.5090909091 | E28: =AVERAGE(C28:D28) -> 0.5440454545 | F28: =IF(E28>=0.7,"A",IF(E28>=0.4,"B","C")) -> B
A29: Росалкогольрегулирование | B29: Прав | C29: 0.526 | D29: 0.4727272727 | E29: =AVERAGE(C29:D29) -> 0.4993636364 | F29: =IF(E29>=0.7,"A",IF(E29>=0.4,"B","C")) -> B
A30: Росархив | B30: През | C30: 0.632 | D30: 0.5272727273 | E30: =AVERAGE(C30:D30) -> 0.5796363636 | F30: =IF(E30>=0.7,"A",IF(E30>=0.4,"B","C")) -> B
A31: Росводресурсы | B31: Прав | C31: 0.737 | D31: 0.4909090909 | E31: =AVERAGE(C31:D31) -> 0.6139545455 | F31: =IF(E31>=0.7,"A",IF(E31>=0.4,"B","C")) -> B
A32: Росгвардия | B32: През | C32: 0.579 | D32: - | E32: =AVERAGE(C32:D32) -> 0.579 | F32: =IF(E32>=0.7,"A",IF(E32>=0.4,"B","C")) -> B
A33: Росгидромет | B33: Прав | C33: 0.789 | D33: 0.6 | E33: =AVERAGE(C33:D33) -> 0.6945 | F33: =IF(E33>=0.7,"A",IF(E33>=0.4,"B","C")) -> B
A34: Росжелдор | B34: Прав | C34: 0 | D34: 0.3272727273 | E34: =AVERAGE(C34:D34) -> 0.1636363636 | F34: =IF(E34>=0.7,"A",IF(E34>=0.4,"B","C")) -> C
A35: Росздравнадзор | B35: Прав | C35: 0.439 | D35: 0.2545454545 | E35: =AVERAGE(C35:D35) -> 0.3467727273 | F35: =IF(E35>=0.7,"A",IF(E35>=0.4,"B","C")) -> C
A36: Росимущество | B36: Прав | C36: 0.579 | D36: 0.4 | E36: =AVERAGE(C36:D36) -> 0.4895 | F36: =IF(E36>=0.7,"A",IF(E36>=0.4,"B","C")) -> B
A37: Роскомнадзор | B37: Прав | C37: 0.474 | D37: 0.2727272727 | E37: =AVERAGE(C37:D37) -> 0.3733636364 | F37: =IF(E37>=0.7,"A",IF(E37>=0.4,"B","C")) -> C
A38: Рослесхоз | B38: Прав | C38: 0.526 | D38: 0.4909090909 | E38: =AVERAGE(C38:D38) -> 0.5084545455 | F38: =IF(E38>=0.7,"A",IF(E38>=0.4,"B","C")) -> B
A39: Росмолодёжь | B39: Прав | C39: 0.632 | D39: 0.3636363636 | E39: =AVERAGE(C39:D39) -> 0.4978181818 | F39: =IF(E39>=0.7,"A",IF(E39>=0.4,"B","C")) -> B
A40: Росморречфлот | B40: Прав | C40: 0.421 | D40: 0.3454545455 | E40: =AVERAGE(C40:D40) -> 0.3832272727 | F40: =IF(E40>=0.7,"A",IF(E40>=0.4,"B","C")) -> C
A41: Роснедра | B41: Прав | C41: 0.684 | D41: 0.4545454545 | E41: =AVERAGE(C41:D41) -> 0.5692727273 | F41: =IF(E41>=0.7,"A",IF(E41>=0.4,"B","C")) -> B
A42: Рособрнадзор | B42: Прав | C42: 0.632 | D42: 0.3272727273 | E42: =AVERAGE(C42:D42) -> 0.4796363636 | F42: =IF(E42>=0.7,"A",IF(E42>=0.4,"B","C")) -> B
A43: Роспатент | B43: Прав | C43: 0.737 | D43: 0.5818181818 | E43: =AVERAGE(C43:D43) -> 0.6594090909 | F43: =IF(E43>=0.7,"A",IF(E43>=0.4,"B","C")) -> B
A44: Роспотребнадзор | B44: Прав | C44: 0.737 | D44: 0.5272727273 | E44: =AVERAGE(C44:D44) -> 0.6321363636 | F44: =IF(E44>=0.7,"A",IF(E44>=0.4,"B","C")) -> B
A45: Росприроднадзор | B45: Прав | C45: 0.737 | D45: 0.3454545455 | E45: =AVERAGE(C45:D45) -> 0.5412272727 | F45: =IF(E45>=0.7,"A",IF(E45>=0.4,"B","C")) -> B
A46: Росреестр | B46: Прав | C46: 0.789 | D46: 0.6181818182 | E46: =AVERAGE(C46:D46) -> 0.7035909091 | F46: =IF(E46>=0.7,"A",IF(E46>=0.4,"B","C")) -> A
A47: Росрезерв | B47: Прав | C47: 0 | D47: - | E47: =AVERAGE(C47:D47) -> 0 | F47: =IF(E47>=0.7,"A",IF(E47>=0.4,"B","C")) -> C
A48: Росрыболовство | B48: Прав | C48: 0.491 | D48: 0.6727272727 | E48: =AVERAGE(C48:D48) -> 0.5818636364 | F48: =IF(E48>=0.7,"A",IF(E48>=0.4,"B","C")) -> B
A49: Россельхознадзор | B49: Прав | C49: 0.632 | D49: 0.6545454545 | E49: =AVERAGE(C49:D49) -> 0.6432727273 | F49: =IF(E49>=0.7,"A",IF(E49>=0.4,"B","C")) -> B
A50: Россотрудничество | B50: През | C50: 0.737 | D50: 0 | E50: =AVERAGE(C50:D50) -> 0.3685 | F50: =IF(E50>=0.7,"A",IF(E50>=0.4,"B","C")) -> C
A51: Росстандарт | B51: Прав | C51: 0.474 | D51: 0.4727272727 | E51: =AVERAGE(C51:D51) -> 0.4733636364 | F51: =IF(E51>=0.7,"A",IF(E51>=0.4,"B","C")) -> B
A52: Росстат | B52: Прав | C52: 0.789 | D52: 0.8181818182 | E52: =AVERAGE(C52:D52) -> 0.8035909091 | F52: =IF(E52>=0.7,"A",IF(E52>=0.4,"B","C")) -> A
A53: Ростехнадзор | B53: Прав | C53: 0.649 | D53: 0.5272727273 | E53: =AVERAGE(C53:D53) -> 0.5881363636 | F53: =IF(E53>=0.7,"A",IF(E53>=0.4,"B","C")) -> B
A54: Ространснадзор | B54: Прав | C54: 0.333 | D54: 0.4181818182 | E54: =AVERAGE(C54:D54) -> 0.3755909091 | F54: =IF(E54>=0.7,"A",IF(E54>=0.4,"B","C")) -> C
A55: Роструд | B55: Прав | C55: 0.877 | D55: 0.5636363636 | E55: =AVERAGE(C55:D55) -> 0.7203181818 | F55: =IF(E55>=0.7,"A",IF(E55>=0.4,"B","C")) -> A
A56: Ростуризм | B56: Прав | C56: 0.649 | D56: 0.4 | E56: =AVERAGE(C56:D56) -> 0.5245 | F56: =IF(E56>=0.7,"A",IF(E56>=0.4,"B","C")) -> B
A57: Росфинмониторинг | B57: През | C57: 0.526 | D57: - | E57: =AVERAGE(C57:D57) -> 0.526 | F57: =IF(E57>=0.7,"A",IF(E57>=0.4,"B","C")) -> B
A58: СВР России | B58: През | C58: 0 | D58: - | E58: =AVERAGE(C58:D58) -> 0 | F58: N/A | G58: рейтинг не присваивается
A59: Управление делами Президента Российской Федерации | B59: През | C59: 0 | D59: 0.2181818182 | E59: =AVERAGE(C59:D59) -> 0.1090909091 | F59: =IF(E59>=0.7,"A",IF(E59>=0.4,"B","C")) -> C
A60: ФАДН России | B60: Прав | C60: 0.544 | D60: 0.2181818182 | E60: =AVERAGE(C60:D60) -> 0.3810909091 | F60: =IF(E60>=0.7,"A",IF(E60>=0.4,"B","C")) -> C
A61: ФАС России | B61: Прав | C61: 0.895 | D61: 0.4909090909 | E61: =AVERAGE(C61:D61) -> 0.6929545455 | F61: =IF(E61>=0.7,"A",IF(E61>=0.4,"B","C")) -> B
A62: Федеральная пробирная палата | B62: Прав | C62: 0 | D62: 0.01818181818 | E62: =AVERAGE(C62:D62) -> 0.009090909091 | F62: =IF(E62>=0.7,"A",IF(E62>=0.4,"B","C")) -> C
A63: ФМБА России | B63: През | C63: 0.509 | D63: 0.3272727273 | E63: =AVERAGE(C63:D63) -> 0.4181363636 | F63: =IF(E63>=0.7,"A",IF(E63>=0.4,"B","C")) -> B
A64: ФНС России | B64: Прав | C64: 0.474 | D64: 0.5818181818 | E64: =AVERAGE(C64:D64) -> 0.5279090909 | F64: =IF(E64>=0.7,"A",IF(E64>=0.4,"B","C")) -> B
A65: ФСБ России | B65: Прав | C65: 0 | D65: 0.2545454545 | E65: =AVERAGE(C65:D65) -> 0.1272727273 | F65: N/A | G65: рейтинг не присваивается
A66: ФСВТС России | B66: През | C66: 0 | D66: - | E66: =AVERAGE(C66:D66) -> 0 | F66: =IF(E66>=0.7,"A",IF(E66>=0.4,"B","C")) -> C
A67: ФСИН России | B67: През | C67: 0.579 | D67: 0.3818181818 | E67: =AVERAGE(C67:D67) -> 0.4804090909 | F67: =IF(E67>=0.7,"A",IF(E67>=0.4,"B","C")) -> B
A68: ФСО России | B68: През | C68: 0 | D68: - | E68: =AVERAGE(C68:D68) -> 0 | F68: N/A | G68: рейтинг не присваивается
A69: ФССП России | B69: През | C69: 0.509 | D69: 0.4909090909 | E69: =AVERAGE(C69:D69) -> 0.4999545455 | F69: =IF(E69>=0.7,"A",IF(E69>=0.4,"B","C")) -> B
A70: ФСТЭК России | B70: През | C70: 0 | D70: - | E70: =AVERAGE(C70:D70) -> 0 | F70: =IF(E70>=0.7,"A",IF(E70>=0.4,"B","C")) -> C
A71: ФТС России | B71: Прав | C71: 0.789 | D71: 0.3636363636 | E71: =AVERAGE(C71:D71) -> 0.5763181818 | F71: =IF(E71>=0.7,"A",IF(E71>=0.4,"B","C")) -> B

Sheet Коды
A1: ОЦЕНКА СОЦСЕТЕЙ ФОИВ
A2: Блок оценки | B2: Критерий оценки | C2: Баллы | D2: Примечание
A3: Информирование | B3: Наличие аккаунта и ссылка на аккаунт на официальном сайте | C3: 3 – более 4 ключевых | D3: Оценивается экспертно
C4: 2 – 4 ключевых
C5: 1 – менее 4 ключевых
C6: 0 – ни одного аккаунта
B7: На странице есть адрес, телефон, время работы, ссылка на сайт | C7: 1 – есть хотя бы в одной сети
C8: 0 – нет ни в одной сети
B9: В каждом аккаунте есть ежедневные посты по будням | C9: 2 – чаще одного раза в неделю | D9: Оценивается экспертно, но проверяется по метрикам (кол-во постов/кол-во недель)
C10: 1 – чаще одного раза в месяц
C11: 0 – последний пост больше месяца назад
A12: Соучастие | B12: Средний ERR = ((Сумма лайков за весь период + сумма репостов за весь период + сумма комментариев за весь период)/охват)*100% | C12: 2 - лучше коридора нормы | D12: Период оценки 1 сентября - 28 февраля. Инструмент оценки: Popster.ru. Для финальной оценки используются максимальные значения ERR и TR из 4 возможных значений. | E12: Норма для ERR = 2,0-2,5, для Erpost = 0,5-0,8
C13: 1 - в пределах нормы
C14: 0 - ниже показателя нормы
B15: TR = (Сумма комментариев/кол-во подписчиков/кол-во публикаций за анализируемый период)*100% | C15: 2 - лучше коридора нормы | E15: Норма для TR = 0,01-0,03
C16: 1 - в пределах нормы
C17: 0 - ниже показателя нормы
A18: Консультирование | B18: Реакция на комментарии: ведомство отвечает на содержательные комментарии полноценно и содержательно, разъясняя суть вопроса | C18: 1 - отвечает в большинстве случаев (более 50% содержательных комментариев имеют ответами администратора) | D18: Оценивается экспертно. Период оценки 1 сентября - 28 февраля. Экспертом просматриваются все посты в самой популярной соцсети (по кол-ву подписчиков) каждого ведомства за период
C19: 0 - ведомство не реагирует на комментарии вообще
B20: Возможность написать личное сообещние ведомтсву через натиыные инструменты социальных сетей | C20: 2 – 4 ключевых
C21: 1 – менее 4 ключевых
C22: 0 – ни одного аккаунта
B23: Реакция на запрос через инструмент обратной связи (оценивается ВК как самая популярная в РФ, ЛИБО та, в которой у ФОИВа больше всего подписчиков). Период ожидания ответа: 10 дней | C23: 2 – полный и подробный ответ (включая ссылки)
C24: 1 – формальный ответ (включая ответ, сформирвоанный ботом)
C25: 0 – отсутствие ответа или ответ бота формата «Мы работаем над вашим запросом)
A26: Формат постинга | B26: Формат текста: соответствие текста поста ТОВ соцсетей, наличие СТА, текст не является перепечаткой пресс-релиза/новости с сайта | C26: 1 - соответствует | D26: Оцниватся экспертно. Для оценки отбираются три поста в периоде оценки 1 сентября - 28 февраля. Посты отбираются из самой популярной соцсети (по кол-ву подписчиков) каждого ведомства
C27: 0 - не соответствует (посты - это перепечатка релиза/новости, без обработки)
B28: Читабельность текста | C28: 2 - лучше коридора нормы | D28: Оцениватеся машинно, через сервис проверки текстов. "Коридор нормы" формируется по итогам общей оценки всех ФОИВ. Jцниватся экспертно. Для оценки отбираются три поста в периоде оценки 1 сентября - 28 февраля. | E28: Норма читабельности 12-15 баллов http://ru.readability.io
C29: 1 - в пределах нормы
C30: 0 - ниже показателя нормы
B31: Формат визуального сопровождения: есть изображение/галерея, видео, сниппет | C31: 1 - соответствует | D31: Оцниватся экспертно. Для оценки отбираются три поста в периоде оценки 1 сентября - 28 февраля.
C32: 0 - не соответствует (низкое качество изображений, нет визуального сопровождения, ссылки прикреплены без предпросмотра и тд)
B33: Максимум | C33: 19
A37: ОЦЕНКА ОБЩЕСТВЕННЫХ СОВЕТОВ ПРИ ФОИВ
A38: Блок оценки | B38: Критерий оценки | C38: Баллы
A39: Оценка ОС как органа гражданского участия
A40: (максимум 27 баллов)
A41: 1. Сайт ОС | B41: Наличие отдельного сайта либо раздела ОС на сайте ФОИВ | C41: 2 – отдельный сайт ОС
C42: 1 – раздел на сайте ФОИВ
C43: 0 – сайт или раздел отсутствуют
A45: 2. Доступность и полнота информации о членах ОС | B45: Перечень лиц, входящих в текущий состав общественного совета | C45: 1 – да
C46: 0 – нет
B47: Указание на организацию, должность лиц, входящих в состав общественного совета | C47: 2 – информация об организациях и должностях указана полностью для всех членов совета.
C48: 1 – для половины и более членов совета информация указана полностью, для оставшихся - частично (например, указана организация и не указана должность).
C49: 0 – информация отсутствует
B51: Краткие биографии всех членов ОС с указанием предыдущих мест работы, в том числе с обязательным указанием факта и периода работы в органах государственной власти или на публичных должностях* | C51: 2 – информация об организациях и должностях указана полностью для всех членов совета.
C52: 1 – для половины и более членов совета информация указана полностью, для оставшихся - частично (например, указана только часть биографии).
C53: 0 – информация отсутствует
B55: Фотографии лиц, входящих в состав общественного совета | C55: 1 – фотографии есть не менее, чем у половины членов общественного совета.
C56: 0 – фотографий нет фотографии есть менее чем у половины членов общественного совета
B58: Контактная информация членов общественного совета (электронный адрес, мессенджеры)* | C58: 1 – информация есть не менее, чем у половины членов общественного совета.
C59: 0 – информации нет или информация есть менее чем у половины членов общественного совета
A61: 3. Доступность и полнота информации о работе ОС | B61: Положение об общественном совете | C61: 1 – размещена текущая версия Положения.
C62: 0 – положение в открытом доступе не размещено
B64: Наличие на сайте ведомства отдельной новостной ленты, посвященной работе общественного совета | C64: 2 – отдельная лента есть, в ней присутствуют достаточно регулярные публикации о деятельности совета в текущем году и предыдущем году.
C65: 1 – отдельная лента отсутствует, но на сайте ведомства встречаются новостные публикации о деятельности общественного совета, за исключением факта его учреждения или изменения в составе.
C66: 0 – отдельная лента отсутствует, на сайте ведомства не встречаются публикации о деятельности совете, за исключением факта его учреждения или изменения в составе
B68: План предстоящих заседаний общественного совета (2021 год) | C68: 2 – размещен план в разрезе месяцев.
C69: 1 – размещен ежеквартальный план, о ежемесячной деятельности совета информация отсутствует.
C70: 0 – план отсутствует в открытом доступе
B72: Повестки предстоящих заседаний общественного совета (2021 год) | C72: 2 – повестки публикуются к каждому заседанию совета, публикация происходит не менее, чем за 3 рабочих дня до заседания
C73: 1 – повестки публикуются не к каждому заседанию или их публикация происходит менее, чем за 3 рабочих дня до заседания
C74: 0 – повестки не публикуются
B76: Протоколы и решения прошедших заседаний общественного совета (2020 год)* | C76: 2 – протоколы и решения размещены не менее, чем для 2/3 заседаний совета.
C77: 1 – протоколы и решения размещены не менее, чем для 1/3 заседаний
C78: 0 – протоколы и решения размещены менее, чем для 1/3 заседаний или не размещаются
B80: Проводятся ли трансляции заседаний на сайте ОС или в соцсетях* | C80: 1 – трансляции проводятся не менее, чем для половины заседаний
C81: 0 – трансляции не проводятся или проводятся менее, чем для половины заседаний
B83: Наличие видеозаписей заседаний ОС на сайте* | C83: 1 – размещены видеозаписи не менее, чем половины заседаний.
C84: 0 – видеозаписи не размещены или размещены, менее, чем для половины заседаний
B86: Наличие информации о работе предыдущих составов ОС* | C86: 2 – размещены полные перечни лиц, входящих в предыдущие составы совета, а также все предыдущие версии Положений об ОС.
C87: 1 – размещена одна из категорий информации, перечисленных выше.
C88: 0 – не размещено
A90: 4. Доступность коммуникации с членами ОС | B90: Текст правового акта, регламентирующий порядок участия в открытых заседаниях общественного совета, либо описание порядка участия. | C90: 2 – в публичном доступе размещен отдельный акт, описывающий порядок участия.
C91: 1 – возможность участия прописана в Положении совета, документ, описывающий порядок такого участия отсутствует.
C92: 0 – возможность участия не прописана в Положении совета
B94: Возможность обращения в общественный совет (его структурное подразделение) через сайт или электронную почту | C94: 1 – да
C95: 0 – нет
B96: Наличие на сайте или в соцсетях открытой дискуссионной площадки для обсуждения предложений и заключений общественного совета по разрабатываемым органом власти проектам НПА, документам и инициативам (чат, форум)* | C96: 2 – площадка создана, на ней проводились регулярные обсуждения в текущем и предыдущем году.
C97: 1 – площадка создана, но обсуждения на ней проводятся не регулярно на ней проводились регулярные обсуждения в текущем и предыдущем году (например, нет обсуждений в текущем году, есть только за предыдущие периоды).
C98: 0 – площадка не создана или создана, но обсуждения не ведутся
A100: Оценка ОС как органа гражданского контроля
A101: (максимум: 28 баллов)
A102: 5. Степень независимости ОС от ФОИВ | B102: Наличие норм в Положении об ОС о необходимости формирования части состава ОС из представителей НКО* | C102: 1 – да
C103: 0 – нет
B104: Наличие общественных деятелей, представителей НКО в составе ОС | C104: 1 – да
C105: 0 – нет
B106: Открытость и понятность процедуры формирования состава совета в Положении об ОС* | C106: 3 – в Положении совета зафиксированы:
C107: - ясные требования к кандидатам в члены ОС, в том числе указание на то, кто не может стать членом ОС
C108: - детализированная процедура номинации кандидатов в члены ОС и их включения в состав ОС, в том числе через процедуру голосования (если это применимо).
C109: - требования о том, что кандидаты в члены ОС не могут быть исключены (отведены) из процедуры формирования ОС представителями ведомства или Общественной палаты.
C110: 2 – в Положении о совете зафиксированы любые 2 пункта из описания выше
C111: 1 – в Положении о совете зафиксирован любой один пунктов из описания выше.
C112: 0 – ни один из пунктов, описанных выше не включен в Положение совета.
B115: Наличие сообщений в новостных лентах ФОИВ и ОС о начале приема заявок в новый состав ОС * | C115: 2 – на сайте ФОИВ и ОС
C116: 1 – на одном из сайтов
C117: 0 – нет
B118: Отсутствие в составе ОС сотрудников подведомственных организаций или представителей зависимых организаций* | C118: 1 – отсутствуют
C119: 0 – присутствуют
B120: Сообщения в СМИ о нарушениях в работе ОС, о вмешательстве ФОИВ в работу ОС или в процесс формирования его состава | C120: 1 – отсутствуют
C121: 0 – присутствуют
A122: 6. Степень влияния ОС на деятельность ФОИВ | B122: Включение руководителя, заместителя руководителя ОС в состав коллегии ФОИВ | C122: 2 – на постоянной основе
C123: 1 – по согласованию
C124: 0 – нет
B127: Участие руководителя ФОИВ в заседаниях ОС* | C127: 2 – да, в более, чем половине всех прошедших за год заседаний
C128: 1 – да, в менее, чем половине всех прошедших за год заседаний
C129: 0 – нет
B130: Наличие на сайте ОС или ФОИВ реакции руководства ФОИВ на рекомендации ОС (0, 1)* | C130: 1 – да
C131: 0 – нет
A133: 7. Степень активности ОС | B133: Частота заседаний ОС, проведенных в течение предыдущего года | C133: 2 – да, чаще, чем раз в квартал
C134: 1 – да, раз в квартал
C135: 0 – реже, чем раз в квартал или не проводились
B136: Использование очных[1] форматов заседаний ОС | C136: 2 – более половины заседаний ОС проводились очно (наличие материалов, указывающих на очную форму участия членов ОС в заседаниях).
C137: 1 – менее половины, но не менее двух заседаний ОС за год проводилось в очном формате.
C138: 0 – очные заседания не проводились
B140: Присутствует ли в повестках ОС вопросы, поднятые по инициативе членов ОС* | C140: 2 – да, на более, чем половине заседаний
C141: 1 – да, на менее, чем половине заседаний
C142: 0 – нет
B144: Направляются ли рекомендации ОС в адрес ФОИВ, его руководителя или заместителей* | C144: 1 – да
C145: 0 – нет
B146: Выражали ли члены ОС позицию по наиболее резонансным вопросам деятельности ведомства в публичном пространстве, в том числе в СМИ | C146: 2 – выражали позицию два и более членов совета
C147: 1 – выражал позицию хотя бы один из членов совета
C148: 0 – нет
B149: Присутствуют ли на заседаниях общественные организации, не представленные в составе ОС* | C149: 1 – да
C150: 0 – нет
B151: Присутствуют ли на заседаниях представители СМИ* | C151: 2 – да, в том числе негосударственные СМИ
C152: 1 – да, присутствуют только государственные СМИ
C153: 0 – не присутствуют
B155: Наличие ежегодного формата публичной отчетности председателя ОС (пресс-конференции)* | C155: 2 – в формате пресс-конференции или ином публичном формате
C156: 1 – в виде отчета на сайте
C157: 0 – нет
A158: Максимум | C158: 58
A161: [1] Очное заседание может быть проведено как с личным офлайн присутствием членов совета, так и с помощью средств онлайн видеосвязи.

Sheet Соцсети
A1: Ведомство | B1: Информирование | I1: Соучастие | W1: Консультирование | Z1: Формат | AO1: ИТОГ
B2: Ссылка VK (кол-во подписчиков) | C2: Ссылка FB (кол-во подписчиков) | D2: Ссылка OK (кол-во подписчиков) | E2: Ссылка Inst (кол-во подписчиков) | F2: Наличие аккаунта | G2: Заполненность информации в аккаунте | H2: Частота постинга | I2: ERR_VK | J2: ERpost_VK | K2: TR _VK | L2: ERR_Fb | M2: Erpost_FB | N2: TR_Fb | O2: ERR_Ок | P2: Erpost_OK | Q2: TR_Ok | R2: ERR_Inst | S2: Erpost_Inst | T2: TR_Inst | U2: ERR//ERpost_Итог | V2: TR_rate_Итог | W2: Реакция на комментарии | X2: Возможность написать | Y2: Качество ответа | Z2: Проверочный пост 1 | AA2: Формат поста | AB2: Читабельность | AC2: Формат визуала | AD2: Проверочный пост 2 | AE2: Формат поста | AF2: Читабельность | AG2: Формат визуала | AH2: Проверочный пост 3 | AI2: Формат поста | AJ2: Читабельность | AK2: Формат визуала | AL2: Формат поста Итог | AM2: Читабельность Итог | AN2: Формат визуала Итог | AO2: Максимум | AP2: Итог | AQ2: Rate
A3: Главное управление специальных программ Президента Российской Федерации (ГУСП) | B3: 0 | C3: 0 | D3: 0 | E3: 0 | F3: 0 | G3: 0 | H3: 0 | I3: 0 | J3: 0 | K3: 0 | L3: 0 | M3: 0 | N3: 0 | O3: 0 | P3: 0 | Q3: 0 | R3: 0 | S3: 0 | T3: 0 | U3: 0 | V3: 0 | W3: 0 | X3: 0 | Y3: 0 | Z3: 0 | AA3: 0 | AB3: 0 | AC3: 0 | AD3: 0 | AE3: 0 | AF3: 0 | AG3: 0 | AH3: 0 | AI3: 0 | AJ3: 0 | AK3: 0 | AL3: 0 | AM3: 0 | AN3: 0 | AO3: 19 | AP3: 0 | AQ3: 0
A4: Государственная фельдъегерская служба Российской Федерации (ГФС России) | B4: 0 | C4: 0 | D4: 0 | E4: 0 | F4: 0 | G4: 0 | H4: 0 | I4: 0 | J4: 0 | K4: 0 | L4: 0 | M4: 0 | N4: 0 | O4: 0 | P4: 0 | Q4: 0 | R4: 0 | S4: 0 | T4: 0 | U4: 0 | V4: 0 | W4: 0 | X4: 0 | Y4: 0 | Z4: 0 | AA4: 0 | AB4: 0 | AC4: 0 | AD4: 0 | AE4: 0 | AF4: 0 | AG4: 0 | AH4: 0 | AI4: 0 | AJ4: 0 | AK4: 0 | AL4: 0 | AM4: 0 | AN4: 0 | AO4: 19 | AP4: 0 | AQ4: 0
A5: Казначейство России | B5: 0 | C5: 1947 https://www.facebook.com/FederalTreasury/?fref=ts | D5: - | E5: 17,5 тыс https://www.instagram.com/roskazna/ | F5: 1 | G5: 1 | H5: 2 | I5: 0 | J5: 0 | K5: 0 | L5: 0 | M5: 0.763 | N5: 0.012 | O5: 0 | P5: 0 | Q5: 0 | R5: 0 | S5: 2.576 | T5: 0.013 | U5: 2 | V5: 1 | W5: 0 | X5: 1 | Y5: 0 | Z5: https://www.instagram.com/p/CGSXDSeHan6/ | AA5: 0 | AB5: 12.55 | AC5: 1 | AD5: https://www.instagram.com/p/CGaHPSIHvYx/ | AE5: 0 | AF5: 22.42 | AG5: 1 | AH5: https://www.instagram.com/p/CF4-V2psjFL/ | AI5: 0 | AJ5: 21.71 | AK5: 1 | AL5: 0 | AM5: 0 | AN5: 1 | AO5: 19 | AP5: 9 | AQ5: 0.4736842105
A6: МВД России | B6: 235 131 (https://vk.com/mvd) | C6: 19 246 (https://www.facebook.com/mvd.official) | D6: 203 071 (https://ok.ru/mvd/members) | E6: 287 тыс (https://www.instagram.com/mvd.russia/) | F6: 3 | G6: 1 | H6: 2 | I6: 1.095711733 | J6: 0.107 | K6: 0 | L6: 4.826200854 | M6: 0.389 | N6: 0.023 | O6: 0.8162469397 | P6: 0.07 | Q6: 0.000441919 | R6: 39.97724805 | S6: 0.522 | T6: 0.007763143 | U6: 2 | V6: 1 | W6: 1 | X6: 1 | Y6: 1 | Z6: https://vk.com/wall-26323016_38167 | AA6: 0 | AB6: 10.26 | AC6: 1 | AD6: https://vk.com/wall-26323016_38149 | AE6: 1 | AF6: 14.31 | AG6: 0 | AH6: https://vk.com/wall-26323016_38536 | AI6: 1 | AJ6: 21.71 | AK6: 1 | AL6: 0.6666666667 | AM6: 0 | AN6: 0.6666666667 | AO6: 19 | AP6: 13.33333333 | AQ6: 0.701754386
A7: МИД России | B7: 409 502 (https://vk.com/mid) | C7: 436 002 (https://www.facebook.com/MIDRussia) | D7: - | E7: 374 тыс. (https://www.instagram.com/mid.rus/) | F7: 1 | G7: 1 | H7: 2 | I7: 2.003080656 | J7: 0.018 | K7: 0.002651941391 | L7: 0.1629351573 | M7: 0.077 | N7: 0.007007257173 | O7: 0 | P7: 0 | Q7: 0 | R7: 45.50943571 | S7: 0.37 | T7: 0.01458872949 | U7: 1 | V7: 1 | W7: 0 | X7: 1 | Y7: 0 | Z7: https://vk.com/wall-70034991_461159 | AA7: 1 | AB7: 11.75 | AC7: 1 | AD7: https://vk.com/wall-70034991_456350 | AE7: 1 | AF7: 12.9 | AG7: 1 | AH7: https://vk.com/wall-70034991_454561 | AI7: 1 | AJ7: 17.17 | AK7: 1 | AL7: 1 | AM7: 1 | AN7: 1 | AO7: 19 | AP7: 10 | AQ7: 0.5263157895
A8: Минвостокразвития России | B8: 94 (https://vk.com/minvostok) | C8: 5 107 (https://www.facebook.com/MinVostok/) | D8: - | E8: 4 142 (https://www.instagram.com/minvostok/) | F8: 1 | G8: 1 | H8: 0 | I8: 2.98514349 | J8: 7.86 | K8: 0.09096816114 | L8: 0 | M8: 0.273 | N8: 0.003924646782 | O8: 0 | P8: 0 | Q8: 0 | R8: 6.679724224 | S8: 2.359 | T8: 0.079 | U8: 2 | V8: 2 | Z8: https://www.facebook.com/302809000547761/posts/842285533266769 | AA8: 0 | AB8: 10.07 | AC8: 1 | AD8: https://www.facebook.com/302809000547761/posts/806040836891239 | AE8: 0 | AF8: 13.16 | AG8: 1 | AH8: https://www.facebook.com/302809000547761/posts/791191818376141 | AI8: 0 | AJ8: 17.73 | AK8: 1 | AL8: 0 | AM8: 1 | AN8: 1 | AO8: 19 | AP8: 8 | AQ8: 0.4210526316
A9: Минздрав России | B9: 115 405 (https://vk.com/minzdravru) | C9: 315 429 (https://www.facebook.com/MinzdravRu/?fref=ts) | D9: 157 451 (https://ok.ru/minzdravru) | E9: 236 тыс. (https://www.instagram.com/rosminzdrav.ru/) | F9: 3 | G9: 1 | H9: 2 | I9: 0 | J9: 0.229 | K9: 0.04 | L9: 0 | M9: 2.199 | N9: 0.357 | O9: 0 | P9: 0.068 | Q9: 0.013 | R9: 0 | S9: 0.508 | T9: 0.05 | U9: 2 | V9: 2 | W9: 0 | X9: 1 | Y9: 0 | Z9: https://vk.com/wall-114069515_19814 | AA9: 1 | AB9: 10.88 | AC9: 1 | AD9: https://vk.com/wall-114069515_13080 | AE9: 1 | AF9: 16.98 | AG9: 1 | AH9: https://vk.com/wall-114069515_9918 | AI9: 1 | AJ9: 10.26 | AK9: 1 | AL9: 1 | AM9: 2 | AN9: 1 | AO9: 19 | AP9: 15 | AQ9: 0.7894736842
A10: Минкультуры России | B10: 40 862 (https://vk.com/public56049514) | C10: 17 930 (https://www.facebook.com/minkultrf) | D10: 54 020 (https://ok.ru/mkrf/) | E10: 120 тыс (https://www.instagram.com/mincult_russia/?hl=ru) | F10: 3 | G10: 1 | H10: 2 | I10: 5.22683638 | J10: 0.228 | K10: 0.003504519479 | L10: 0.8676292559 | M10: 0.411 | N10: 0.008533881451 | O10: 0.1581264843 | P10: 0.42 | Q10: 0.001072244419 | R10: 4.782850223 | S10: 0.824 | T10: 0.025 | U10: 2 | V10: 0 | W10: 0 | X10: 1 | Y10: 0 | Z10: https://vk.com/wall-56049514_21502 | AA10: 0 | AB10: 17.33 | AC10: 1 | AD10: https://vk.com/wall-56049514_20748 | AE10: 0 | AF10: 21.96 | AG10: 1 | AH10: https://vk.com/wall-56049514_20468 | AI10: 1 | AJ10: 9.73 | AK10: 1 | AL10: 0.3333333333 | AM10: 0 | AN10: 1 | AO10: 19 | AP10: 10.33333333 | AQ10: 0.5438596491
A11: Минобороны России | B11: 440 625 (https://vk.com/mil) | C11: 299 491 (https://www.facebook.com/mod.mil.rus/) | D11: 50 888 (https://ok.ru/mil) | E11: 486 тыс (https://www.instagram.com/mil_ru/) | F11: 3 | G11: 1 | H11: 2 | I11: 21.26945722 | J11: 0.073 | K11: 0.004770804193 | L11: 8.130895661 | M11: 0.21 | N11: 0.0119374306 | O11: 14.89595435 | P11: 0.071 | Q11: 0.00536945526 | R11: 2.548547823 | S11: 0.929 | T11: 0.014 | U11: 2 | V11: 1 | W11: 0 | X11: 2 | Y11: 1 | Z11: https://vk.com/wall-133441491_399561 | AA11: 0 | AB11: 12.55 | AC11: 1 | AD11: https://vk.com/wall-133441491_393353 | AE11: 1 | AF11: 6.3 | AG11: 1 | AH11: https://vk.com/wall-133441491_404359 | AI11: 1 | AJ11: 11.13 | AK11: 1 | AL11: 0.6666666667 | AM11: 2 | AN11: 1 | AO11: 19 | AP11: 15.66666667 | AQ11: 0.8245614035
A12: Минобрнауки России | B12: 27 933 (https://vk.com/minobrnauki) | C12: 5 447 (https://www.facebook.com/minobrnaukigov/) | D12: 15 591 (https://ok.ru/group/63697153490997) | E12: 66,6 тыс. (https://www.instagram.com/minobrnauki_russia/) | F12: 3 | G12: 1 | H12: 2 | I12: 3.820160903 | J12: 0.357 | K12: 0.029 | L12: 3.007848803 | M12: 0.699 | N12: 0.02 | O12: 0.1950823928 | P12: 0.038 | Q12: 0.002 | R12: 2.795880516 | S12: 0.428 | T12: 0.012 | U12: 2 | V12: 1 | W12: 0 | X12: 2 | Y12: 0 | Z12: https://vk.com/wall-167915299_4317 | AA12: 1 | AB12: 28.7 | AC12: 1 | AD12: https://vk.com/wall-167915299_9086 | AE12: 1 | AF12: 10.26 | AG12: 1 | AH12: https://vk.com/wall-167915299_4217 | AI12: 1 | AJ12: 12.55 | AK12: 1 | AL12: 1 | AM12: 0 | AN12: 1 | AO12: 19 | AP12: 13 | AQ12: 0.6842105263
A13: Минприроды России | B13: 171 (https://vk.com/min_prirody) | C13: 8 408 (https://www.facebook.com/mnr.gov) | D13: https://ok.ru/profile/591063362109 (заведена как личная страница - не возможно снять метрики) | E13: 10.5 тыс (https://www. instagram. com/min. prirody/) | F13: 3 | G13: 1 | H13: 1 | I13: 57 | J13: 16.011 | K13: 0.5617977528 | L13: 717.1503958 | M13: 0.46 | N13: 0.04200470859 | O13: 0 | P13: 0 | Q13: 0 | R13: 56 | S13: 1.541 | T13: 0.187 | U13: 2 | V13: 2 | W13: 0 | X13: 1 | Y13: 0 | Z13: https://www.instagram.com/p/CHYBWnVleEj/ | AA13: 1 | AB13: 7.27 | AC13: 1 | AD13: https://www.instagram.com/p/CIvuWpMFgqo/ | AE13: 1 | AF13: 12.55 | AG13: 1 | AH13: https://www.instagram.com/p/CHckxPllmi3/ | AI13: 1 | AJ13: 0 | AK13: 1 | AL13: 1 | AM13: 2 | AN13: 1 | AO13: 19 | AP13: 14 | AQ13: 0.7368421053
A14: Минпромторг России | B14: 23 311 https://vk.com/ minpromtorgrus | C14: 36 747 https://www.facebook. com/minpromtorg | D14: - | E14: 65,9 тыс. https://www. nstagram.com/ minpromtorg/ | F14: 1 | G14: 1 | H14: 2 | I14: 0 | J14: 0.155 | K14: 0.014 | L14: 0 | M14: 0.139 | N14: 0.005 | O14: 0 | P14: 0 | Q14: 0 | R14: 0 | S14: 0.615 | T14: 0.017 | U14: 1 | V14: 1 | W14: 0 | X14: 1 | Y14: 0 | Z14: https://www. instagram.com/p/ CGu_5w7HtxE/ | AA14: 1 | AB14: 13.68 | AC14: 1 | AD14: https://www. instagram.com/p/ CI3FAItBQt-/ | AE14: 1 | AF14: 19.42 | AG14: 1 | AH14: https://www. instagram.com/p/ CG4Wu43nAO-/ | AI14: 1 | AJ14: 13.31 | AK14: 1 | AL14: 1 | AM14: 0 | AN14: 1 | AO14: 19 | AP14: 9 | AQ14: 0.4736842105
A15: Минпросвещения России | B15: 393 020 https://vk.com/ minprosvet | C15: 34 696 https://ru-ru.facebook. com/minprosvet/ | D15: 115 740 https://ok.ru/ minprosvet | E15: 184 тыс. https://www. instagram.com/ minprosvet/ | F15: 3 | G15: 1 | H15: 2 | I15: 0.9350177512 | J15: 0.1 | K15: 0.005578879436 | L15: 10.60994073 | M15: 0.147 | N15: 0.004708367619 | O15: 2.240282784 | P15: 0.014 | Q15: 0.0005535050709 | R15: 53.60074964 | S15: 0.33 | T15: 0.012 | U15: 2 | V15: 1 | W15: 0 | X15: 2 | Y15: 1 | Z15: https://vk.com/wall-30558759_2221455 | AA15: 0 | AB15: 11.91 | AC15: 1 | AD15: https://vk.com/minprosvet?w=wall-30558759_224603 | AE15: 1 | AF15: 11.91 | AG15: 1 | AH15: https://vk.com/wall-30558759_217871 | AI15: 1 | AJ15: 12.55 | AK15: 1 | AL15: 0.6666666667 | AM15: 1 | AN15: 1 | AO15: 19 | AP15: 14.66666667 | AQ15: 0.7719298246
A16: Минсельхоз России | B16: 6 510 https://vk.com/ minselhoz | C16: 8 527 https://www.facebook. com/minselhoz/ | D16: 1 542 https://ok.ru/ group/ 58417191 780400 | E16: 44,4 тыс. https://www. instagram. com/mcx_rf/ | F16: 3 | G16: 1 | H16: 2 | I16: 0 | J16: 0.571 | K16: 0.02 | L16: 0 | M16: 0.802 | N16: 0.024 | O16: 0 | P16: 0.152 | Q16: 0.002 | R16: 0 | S16: 0.832 | T16: 0.011 | U16: 2 | V16: 1 | W16: 0 | X16: 1 | Y16: 0 | Z16: https://www. instagram.com/p /CLubSnmnzCA/ | AA16: 1 | AB16: 14.93 | AC16: 1 | AD16: https://www.instagram. com/p/CLcicp2n-Q_/ | AE16: 1 | AF16: 12.55 | AG16: 1 | AH16: https://www.instagram.com/p/CF9nyOWHHUC/ | AI16: 1 | AJ16: 10.07 | AK16: 1 | AL16: 1 | AM16: 1 | AN16: 1 | AO16: 19 | AP16: 13 | AQ16: 0.6842105263
A17: Минспорт России | B17: 48 774 https://vk.com/ minsportrf | C17: 1 824 https://www.facebook. com/minsportrf/ | D17: - | E17: 49 тыс. https://www. instagram. com/minsport _rf/ | F17: 1 | G17: 1 | H17: 2 | I17: 2.383232641 | J17: 0.525 | K17: 0.005 | L17: 5.219888436 | M17: 0.98 | N17: 0.02 | O17: 0 | P17: 0 | Q17: 0 | R17: 5.517975412 | S17: 1.059 | T17: 0.014 | U17: 2 | V17: 1 | W17: 0 | X17: 1 | Y17: 0 | Z17: https://www.i nstagram.com/p/ CGxYIuVj-CB/ | AA17: 1 | AB17: 8.89 | AC17: 1 | AD17: https://www.instagram.com/p/CLzZ11IDvfH/ | AE17: 1 | AF17: 6.01 | AG17: 1 | AH17: https://www. instagram.com/p/CLz Z11IDvfH/ | AI17: 0 | AJ17: 14.31 | AK17: 1 | AL17: 0.6666666667 | AM17: 2 | AN17: 1 | AO17: 19 | AP17: 11.66666667 | AQ17: 0.6140350877
A18: Минстрой России | B18: 11 480 https://vk.com/ minstroyrfofficial | C18: 19 352 https://www.facebook. com/minstroyrf | D18: 30 412 https://ok.ru/ group/5359 8208065632 | E18: 48,3 тыс. https://www. instagram. com/minstroyrf/ | F18: 3 | G18: 1 | H18: 2 | I18: 0.8679562248 | J18: 0.186 | K18: 0 | L18: 1.24257599 | M18: 0.181 | N18: 0.006 | O18: 0 | P18: 0 | Q18: 0 | R18: 6.263 | S18: 0.506 | T18: 0.015 | U18: 2 | V18: 1 | W18: 0 | X18: 1 | Y18: 0 | Z18: https://www.instagram.com/p/CJWZL5shPql/ | AA18: 0 | AB18: 12.55 | AC18: 1 | AD18: https://www.instagram.com/p/CKGaA31h5LZ/ | AE18: 0 | AF18: 13.75 | AG18: 1 | AH18: https://www.instagram.com/p/CKzcu_JhutN/ | AI18: 0 | AJ18: 13.31 | AK18: 1 | AL18: 0 | AM18: 1 | AN18: 1 | AO18: 19 | AP18: 12 | AQ18: 0.6315789474
A19: Минтранс России | B19: 2384 https://vk.com/ mintransrussia | C19: 3 502 https://www.facebook. com/MintransRussia | D19: - | E19: 35,6 тыс. https://www. instagram. com/ mintransrussia/ | F19: 1 | G19: 1 | H19: 2 | I19: 3.313 | J19: 0.471 | K19: 0.033 | L19: 5.397 | M19: 0.516 | N19: 0.018 | O19: 0 | P19: 0 | Q19: 0 | R19: 3.78 | S19: 0.728 | T19: 0.009 | U19: 2 | V19: 2 | W19: 0 | X19: 1 | Y19: 0 | Z19: https://www.instagram.com/p/CHaqCDUFLxt/ | AA19: 0 | AB19: 10.68 | AC19: 1 | AD19: https://www.instagram.com/p/CHuqJYDFx41/ | AE19: 1 | AF19: 0.05 | AG19: 1 | AH19: https://www.instagram.com/p/CKhYkbplgB3/ | AI19: 0 | AJ19: 12.55 | AK19: 1 | AL19: 0.3333333333 | AM19: 2 | AN19: 1 | AO19: 19 | AP19: 12.33333333 | AQ19: 0.649122807
A20: Минтруд России | B20: 3217 https://vk.com/ mintrudrf | C20: 707 https://www.facebook. com/mintrudrf/ | D20: 362 https://ok.ru/ group/5729314 7603099 | E20: 12,5 тыс https://www.instagram.com/mintrudrf/ | F20: 3 | G20: 1 | H20: 1 | I20: 12.30448384 | J20: 1.525 | K20: 0.026 | L20: 5.080330004 | M20: 2.521 | N20: 0.043 | O20: 1.687722069 | P20: 0.798 | Q20: 0.079 | R20: 2.091482227 | S20: 0.698 | T20: 0.032 | U20: 2 | V20: 2 | W20: 0 | X20: 2 | Y20: 0 | Z20: https://www.instagram.com/p/CMUIb1Lqzy0/ | AA20: 1 | AB20: 22.59 | AC20: 1 | AD20: https://www.instagram.com/p/CNF-ZPcM1D8// | AE20: 1 | AF20: 8.89 | AG20: 1 | AH20: https://www.instagram.com/p/CMt_F88CEuj/ | AI20: 1 | AJ20: 8.89 | AK20: 1 | AL20: 1 | AM20: 1 | AN20: 1 | AO20: 19 | AP20: 14 | AQ20: 0.7368421053
A21: Минфин России | B21: 9600 https://vk.com/ruminfin | C21: 7260 https://www.facebook.com/ruminfin/ | D21: - | E21: 72 тыс https://www.instagram.com/ruminfin/ | F21: 1 | G21: 1 | H21: 2 | I21: 4.897 | J21: 0.51 | K21: 0.017 | L21: 8.307962925 | M21: 0.433 | N21: 0.03 | O21: 0 | P21: 0 | Q21: 0 | R21: 2.750983422 | S21: 0.462 | T21: 0.01 | U21: 2 | V21: 1 | W21: 0 | X21: 1 | Y21: 0 | Z21: https://www.instagram.com/p/CJOu3_Lj2h9/ | AA21: 1 | AB21: 8.89 | AC21: 1 | AD21: https://www.instagram.com/p/CLeswhUDRiF/ | AE21: 1 | AF21: 10.26 | AG21: 1 | AH21: https://www.instagram.com/p/CKElx7ujoCW/ | AI21: 0 | AJ21: 10.88 | AK21: 1 | AL21: 0.6666666667 | AM21: 2 | AN21: 1 | AO21: 19 | AP21: 11.66666667 | AQ21: 0.6140350877
A22: Минцифры России | B22: - | C22: 5 675 (https://www.facebook.com/minsvyaz.place?fref=ts) | D22: - | E22: 6 189 (https://www.instagram.com/minsvyaz_official/) | F22: 1 | G22: 1 | H22: 1 | I22: 0 | J22: 0 | K22: 0 | L22: 44.26920169 | M22: 0.383 | N22: 0.017 | O22: 0 | P22: 0 | Q22: 0 | R22: 4.886595311 | S22: 1.177 | T22: 0.055 | U22: 2 | V22: 2 | W22: 1 | X22: 1 | Y22: 0 | Z22: https://www.facebook.com/203797266309794/posts/3520639344625553 | AA22: 0 | AB22: 24.1 | AC22: 1 | AD22: https://www.facebook.com/203797266309794/posts/3666796703343149 | AE22: 1 | AF22: 3 | AG22: 1 | AH22: https://www.facebook.com/203797266309794/posts/3663170987039054 | AI22: 1 | AJ22: 4.47 | AK22: 1 | AL22: 0.6666666667 | AM22: 2 | AN22: 1 | AO22: 19 | AP22: 12.66666667 | AQ22: 0.6666666667
A23: Минэкономразвития России | B23: 6008 https://vk.com/ministryeconomy | C23: 18708 https://www.facebook.com/MinistryEconomy | D23: - | E23: 43,6 тыс https://www.instagram.com/minec_russia/ | F23: 1 | G23: 1 | H23: 2 | I23: 8.663484487 | J23: 0.245 | K23: 0.013 | L23: 1.772968319 | M23: 0.14 | N23: 0.007 | O23: 0 | P23: 0 | Q23: 0 | R23: 2.52872776 | S23: 0.349 | T23: 0.016 | U23: 2 | V23: 1 | W23: 1 | X23: 1 | Y23: 2 | Z23: https://www.instagram.com/p/CFo7weNjn4x/ | AA23: 1 | AB23: 12.1 | AC23: 1 | AD23: https://www.instagram.com/p/CEuLIW5IjEo/ | AE23: 0 | AF23: 18.45 | AG23: 1 | AH23: https://www.instagram.com/p/CJOtwcGj5vR/ | AI23: 1 | AJ23: 12.55 | AK23: 1 | AL23: 0.6666666667 | AM23: 1 | AN23: 1 | AO23: 19 | AP23: 13.66666667 | AQ23: 0.7192982456
A24: Минэнерго России | B24: 38 https://vk.com/minenergo_rf | C24: 6239 https://www.facebook.com/Minenergo.Gov | D24: 145 https://ok.ru/group/61452899975413 | E24: 26,4 тыс https://www.instagram.com/minenergogov/ | F24: 3 | G24: 1 | H24: 2 | I24: 1.658276577 | J24: 3.009 | K24: 0.278 | L24: 2.576435267 | M24: 0.369 | N24: 0.011 | O24: 1.581463773 | P24: 0.91 | Q24: 0.021 | R24: 7.261597195 | S24: 2.783 | T24: 0.054 | U24: 2 | V24: 2 | W24: 1 | X24: 1 | Y24: 1 | Z24: https://www.instagram.com/p/CLCNSDdlp7i/ | AA24: 1 | AB24: 10.88 | AC24: 1 | AD24: https://www.instagram.com/p/CFNOxXoF4sq/ | AE24: 1 | AF24: 8.12 | AG24: 1 | AH24: https://www.instagram.com/p/CI3rgziluUv/ | AI24: 1 | AJ24: 6.3 | AK24: 1 | AL24: 1 | AM24: 2 | AN24: 1 | AO24: 19 | AP24: 17 | AQ24: 0.8947368421
A25: Минюст России | B25: 0 | C25: 0 | D25: 0 | E25: 0 | F25: 0 | G25: 0 | H25: 0 | I25: 0 | J25: 0 | K25: 0 | L25: 0 | M25: 0 | N25: 0 | O25: 0 | P25: 0 | Q25: 0 | R25: 0 | S25: 0 | T25: 0 | U25: 0 | V25: 0 | W25: 0 | X25: 0 | Y25: 0 | Z25: 0 | AA25: 0 | AB25: 0 | AC25: 0 | AD25: 0 | AE25: 0 | AF25: 0 | AG25: 0 | AH25: 0 | AI25: 0 | AJ25: 0 | AK25: 0 | AL25: 0 | AM25: 0 | AN25: 0 | AO25: 19 | AP25: 0 | AQ25: 0
A26: МЧС России | B26: 218293 https://vk.com/mchs__russia | C26: 23841 https://www.facebook.com/MchsRussia | D26: 57780 https://ok.ru/mchsrussia | E26: 136 тыс https://www.instagram.com/mchs.russia/ | F26: 3 | G26: 1 | H26: 2 | I26: 0 | J26: 0.128 | K26: 0.004 | L26: 0 | M26: 0.148 | N26: 0.002 | O26: 0 | P26: 0.041 | Q26: 0.001 | R26: 0 | S26: 0.937 | T26: 0.017 | U26: 2 | V26: 1 | W26: 0 | X26: 1 | Y26: 0 | Z26: https://www.instagram.com/p/CGZdUklheiK/ | AA26: 1 | AB26: 8.39 | AC26: 1 | AD26: https://www.instagram.com/p/B81Z6VHlVM1/ | AE26: 1 | AF26: 7.27 | AG26: 1 | AH26: https://www.instagram.com/p/CLWvTReFh77/ | AI26: 1 | AJ26: 13.31 | AK26: 1 | AL26: 1 | AM26: 2 | AN26: 1 | AO26: 19 | AP26: 14 | AQ26: 0.7368421053
A27: Росавиация | B27: 728 https://vk.com/favt_ru (на сайте ссылки на ВК нет) | C27: 990 https://www.facebook.com/favtrf/ | D27: 0 | E27: 0 | F27: 1 | G27: 1 | H27: 2 | I27: 0 | J27: 0 | K27: 0 | L27: 0 | M27: 0.086 | N27: 0.005 | O27: 0 | P27: 0 | Q27: 0 | R27: 0 | S27: 0 | T27: 0 | U27: 0 | V27: 0 | W27: 0 | X27: 0 | Y27: 0 | Z27: https://www.facebook.com/favtrf/posts/1268677466845364 | AA27: 0 | AB27: 0 | AC27: 0 | AD27: https://www.facebook.com/favtrf/posts/1184473038599141 | AE27: 0 | AF27: 0 | AG27: 0 | AH27: https://www.facebook.com/favtrf/posts/1201607503552361 | AI27: 0 | AJ27: 0 | AK27: 0 | AL27: 0 | AM27: 0 | AN27: 0 | AO27: 19 | AP27: 4 | AQ27: 0.2105263158
A28: Росавтодор | B28: 166048 https://vk.com/rosavtodor | C28: 60492 https://www.facebook.com/rosavtodor/ | D28: 35509 https://ok.ru/rosavtodor | E28: 82 тыс. https://www.instagram.com/rosavtodor/ | F28: 3 | G28: 1 | H28: 2 | I28: 1.365218846 | J28: 0.187 | K28: 0.05070473431 | L28: 3.653526901 | M28: 0.078 | N28: 0.016283414 | O28: 0.4196737533 | P28: 0.032 | Q28: 0.001817437 | R28: 3.344189396 | S28: 0.748 | T28: 0.049162916 | U28: 2 | V28: 2 | W28: 1 | X28: 2 | Y28: 2 | Z28: https://vk.com/wall-67937894_88991 | AA28: 1 | AB28: 11.58 | AC28: 1 | AD28: https://vk.com/wall-67937894_93639 | AE28: 1 | AF28: 9.18 | AG28: 1 | AH28: https://vk.com/wall-67937894_91597 | AI28: 1 | AJ28: 4.47 | AK28: 1 | AL28: 1 | AM28: 2 | AN28: 1 | AO28: 19 | AP28: 19 | AQ28: 1
A29: Росаккредитация | B29: 0 | C29: 869 https://www.facebook.com/rusaccreditation | D29: 0 | E29: 1721 https://www.instagram.com/fsa.gov.ru/ | F29: 1 | G29: 1 | H29: 2 | I29: 0 | J29: 0 | K29: 0 | L29: 3.769929364 | M29: 1.304 | N29: 0.024 | O29: 0 | P29: 0 | Q29: 0 | R29: 0 | S29: 3.228 | T29: 0.015 | U29: 2 | V29: 1 | W29: 0 | X29: 1 | Y29: 0 | Z29: https://www.instagram.com/p/CKLZkj8jSae/ | AA29: 1 | AB29: 17.73 | AC29: 1 | AD29: https://www.instagram.com/p/CIJJQlTDMe9/ | AE29: 1 | AF29: 19.82 | AG29: 1 | AH29: https://www.instagram.com/p/CK4FEpmDzDt/ | AI29: 1 | AJ29: 0 | AK29: 1 | AL29: 1 | AM29: 1 | AN29: 1 | AO29: 19 | AP29: 11 | AQ29: 0.5789473684
A30: Росалкогольрегулирование | B30: 1233 https://vk.com/fsrarru | C30: 489 https://www.facebook.com/fsrar.ru/ | D30: 0 | E30: 1504 https://www.instagram.com/fsrar.ru/ | F30: 1 | G30: 1 | H30: 2 | I30: 1.411313741 | J30: 0.159 | K30: 0.016 | L30: 2.649826647 | M30: 0.236 | N30: 0.004 | O30: 0 | P30: 0 | Q30: 0 | R30: 1.637359896 | S30: 1.831 | T30: 0.012 | U30: 2 | V30: 1 | W30: 0 | X30: 1 | Y30: 2 | Z30: https://vk.com/wall-109697745_1100 | AA30: 0 | AB30: 19.01 | AC30: 0 | AD30: https://vk.com/wall-109697745_1159 | AE30: 0 | AF30: 16.35 | AG30: 0 | AH30: https://vk.com/wall-109697745_1166 | AI30: 0 | AJ30: 17.99 | AK30: 0 | AL30: 0 | AM30: 0 | AN30: 0 | AO30: 19 | AP30: 10 | AQ30: 0.5263157895
A31: Росархив | B31: 3906 https://vk.com/rusarchives | C31: 0 | D31: 0 | E31: 0 | F31: 1 | G31: 0 | H31: 2 | I31: 0 | J31: 2.042 | K31: 0.024 | L31: 0 | M31: 0 | N31: 0 | O31: 0 | P31: 0 | Q31: 0 | R31: 0 | S31: 0 | T31: 0 | U31: 1 | V31: 1 | W31: 0 | X31: 1 | Y31: 2 | Z31: https://vk.com/wall-164851212_516 | AA31: 1 | AB31: 10.88 | AC31: 1 | AD31: https://vk.com/wall-164851212_563 | AE31: 1 | AF31: 8.89 | AG31: 1 | AH31: https://vk.com/wall-164851212_536 | AI31: 1 | AJ31: 11.13 | AK31: 1 | AL31: 1 | AM31: 2 | AN31: 1 | AO31: 19 | AP31: 12 | AQ31: 0.6315789474
A32: Росводресурсы | B32: 115 https://vk.com/rosvodresursy (на сайте ссылки нет) | C32: 115 https://www.facebook.com/rosvodresursy (на сайте ссылки нет) | D32: - | E32: 1238 https://www.instagram.com/rosvodresursy/ (на сайте ссылки нет) | F32: 1 | G32: 1 | H32: 2 | I32: 29.64193046 | J32: 6.733 | K32: 0.325 | L32: 51.69971671 | M32: 5.334 | N32: 0.073 | O32: 0 | P32: 0 | Q32: 0 | R32: 441.0878113 | S32: 4.124 | T32: 0.123 | U32: 2 | V32: 2 | W32: 1 | X32: 1 | Y32: 0 | Z32: https://www.instagram.com/p/CKlxSQKnIgx/ | AA32: 1 | AB32: 9.43 | AC32: 1 | AD32: https://www.instagram.com/p/CKTdM7KH26-/ | AE32: 1 | AF32: 7.27 | AG32: 1 | AH32: https://www.instagram.com/p/CE9pueqoHoa/ | AI32: 1 | AJ32: 8.39 | AK32: 1 | AL32: 1 | AM32: 2 | AN32: 1 | AO32: 19 | AP32: 14 | AQ32: 0.7368421053
A33: Росгвардия | B33: 69052 https://vk.com/rosgvard_official | C33: 0 | D33: 467 https://ok.ru/rosgvard.official | E33: 86131 https://www.instagram.com/rosgvard_official/ | F33: 1 | G33: 1 | H33: 2 | I33: 2.992689944 | J33: 0.102 | K33: 0 | L33: 0 | M33: 0 | N33: 0 | O33: 12.00627847 | P33: 0.644 | Q33: 0.005 | R33: 3.055249446 | S33: 0.557 | T33: 0.004 | U33: 2 | V33: 0 | W33: 0 | X33: 1 | Y33: 0 | Z33: https://www.instagram.com/p/CH23rT2FNml/ | AA33: 1 | AB33: 0 | AC33: 1 | AD33: https://www.instagram.com/p/CF1J8pBFW_y/ | AE33: 1 | AF33: 10.51 | AG33: 1 | AH33: https://www.instagram.com/p/CFZPPzbFuc9/ | AI33: 1 | AJ33: 10.88 | AK33: 1 | AL33: 1 | AM33: 2 | AN33: 1 | AO33: 19 | AP33: 11 | AQ33: 0.5789473684
A34: Росгидромет | B34: 4503 https://vk.com/roshydromet | C34: 2468 https://www.facebook.com/roshydromet/ | D34: 457 https://ok.ru/rosgidromet.federalnayasluzhba (страница заведена как профиль, а не как группа) | E34: 2425 https://www.instagram.com/roshydromet.fs/ | F34: 3 | G34: 1 | H34: 2 | I34: 0 | J34: 0.596 | K34: 0.015 | L34: 0 | M34: 0.214 | N34: 0.007 | O34: 0 | P34: 0 | Q34: 0 | R34: 0 | S34: 4.838 | T34: 0.125 | U34: 2 | V34: 2 | W34: 0 | X34: 1 | Y34: 0 | Z34: https://vk.com/wall-163435505_5284 | AA34: 1 | AB34: 0.05 | AC34: 1 | AD34: https://vk.com/wall-163435505_5170 | AE34: 1 | AF34: 12.99 | AG34: 1 | AH34: https://vk.com/wall-163435505_5089 | AI34: 1 | AJ34: 10.26 | AK34: 1 | AL34: 1 | AM34: 2 | AN34: 1 | AO34: 19 | AP34: 15 | AQ34: 0.7894736842
A35: Росжелдор | B35: 0 | C35: 0 | D35: 0 | E35: 0 | F35: 0 | G35: 0 | H35: 0 | I35: 0 | K35: 0 | L35: 0 | N35: 0 | O35: 0 | P35: 0 | Q35: 0 | R35: 0 | T35: 0 | U35: 0 | V35: 0 | W35: 0 | X35: 0 | Y35: 0 | Z35: 0 | AA35: 0 | AB35: 0 | AC35: 0 | AD35: 0 | AE35: 0 | AF35: 0 | AG35: 0 | AH35: 0 | AI35: 0 | AJ35: 0 | AK35: 0 | AL35: 0 | AM35: 0 | AN35: 0 | AO35: 19 | AP35: 0 | AQ35: 0
A36: Росздравнадзор | B36: 965 https://vk.com/roszdravnadzorru | C36: - | D36: - | E36: - | F36: 1 | G36: 1 | H36: 2 | I36: 3.199702353 | J36: 0.268 | K36: 0 | L36: 0 | M36: 0 | N36: 0 | O36: 0 | P36: 0 | Q36: 0 | R36: 0 | S36: 0 | T36: 0 | U36: 2 | V36: 2 | W36: 0 | X36: 0 | Y36: 0 | Z36: https://vk.com/wall-184355205_208 | AA36: 0 | AB36: 17.9 | AC36: 0 | AD36: https://vk.com/wall-184355205_161 | AE36: 0 | AF36: 20.78 | AG36: 1 | AH36: https://vk.com/wall-184355205_173 | AI36: 0 | AJ36: 17.73 | AK36: 0 | AL36: 0 | AM36: 0 | AN36: 0.3333333333 | AO36: 19 | AP36: 8.333333333 | AQ36: 0.4385964912
A37: Росимущество | B37: - | C37: 3375 https://www.facebook.com/Rosim.ru/ | D37: - | E37: 3818 https://www.instagram.com/rosim.ru/?igshid=4pp45xp2grv6 | F37: 1 | G37: 1 | H37: 1 | I37: 0 | J37: 0 | K37: 0 | L37: 4.101838755 | M37: 0.649 | N37: 0.017 | O37: 0 | P37: 0 | Q37: 0 | R37: 6.348019219 | S37: 2.673 | T37: 0.057 | U37: 2 | V37: 2 | W37: 1 | X37: 1 | Y37: 2 | Z37: https://www.facebook.com/Rosim.ru/posts/1555304378000551 | AA37: 0 | AB37: 14.49 | AC37: 0 | AD37: https://www.facebook.com/Rosim.ru/posts/1516662495198073 | AE37: 0 | AF37: 20.78 | AG37: 0 | AH37: https://www.facebook.com/Rosim.ru/posts/1469521979912125 | AI37: 0 | AJ37: 22.59 | AK37: 0 | AL37: 0 | AM37: 0 | AN37: 0 | AO37: 19 | AP37: 11 | AQ37: 0.5789473684
A38: Роскомнадзор | B38: 79 058 https://vk.com/rkn | C38: 8998 https://www.facebook.com/roskomnadzor.official | D38: - | E38: - | F38: 1 | G38: 0 | H38: 2 | I38: 1.926179864 | J38: 0.183 | K38: 0.084 | L38: 2.146911053 | M38: 0.214 | N38: 0.052 | O38: 0 | P38: 0 | Q38: 0 | R38: 0 | S38: 0 | T38: 0 | U38: 2 | V38: 2 | W38: 0 | X38: 1 | Y38: 0 | Z38: https://vk.com/wall-76229642_229748 | AA38: 1 | AB38: 17.73 | AC38: 0 | AD38: https://vk.com/wall-76229642_229749 | AE38: 1 | AF38: 17.17 | AG38: 0 | AH38: https://vk.com/wall-76229642_229840 | AI38: 1 | AJ38: 14.79 | AK38: 0 | AL38: 1 | AM38: 0 | AN38: 0 | AO38: 19 | AP38: 9 | AQ38: 0.4736842105
A39: Рослесхоз | B39: 10 345 https://vk.com/rosleshozrf | C39: 4040 https://www.facebook.com/RosleshozRF/ | D39: - | E39: 9707 https://www.instagram.com/rosleshoz/ | F39: 1 | G39: 1 | H39: 2 | I39: 1.787601168 | J39: 0.531 | K39: 0.019 | L39: 6.535634652 | M39: 0.717 | N39: 0.026 | O39: 0 | P39: 0 | Q39: 0 | R39: 4.290080307 | S39: 1.879 | T39: 0.035 | U39: 2 | V39: 2 | W39: 0 | X39: 1 | Y39: 0 | Z39: https://vk.com/wall-121901344_8855 | AA39: 0 | AB39: 19.53 | AC39: 1 | AD39: https://vk.com/wall-121901344_8856 | AE39: 0 | AF39: 17.33 | AG39: 0 | AH39: https://vk.com/wall-121901344_8866 | AI39: 1 | AJ39: 14.49 | AK39: 1 | AL39: 0.3333333333 | AM39: 0 | AN39: 0.6666666667 | AO39: 19 | AP39: 10 | AQ39: 0.5263157895
A40: Росмолодёжь | B40: 126 539 https://vk.com/rosmolodez | C40: 9108 https://www.facebook.com/rosmolodez | D40: - | E40: 52 800 https://www.instagram.com/rosmolodez/ | F40: 1 | G40: 1 | H40: 2 | I40: 1.840977445 | J40: 0.045 | K40: 0.001 | L40: 0.629420187 | M40: 0.106 | N40: 0.001 | O40: 0 | P40: 0 | Q40: 0 | R40: 1.036247313 | S40: 0.449 | T40: 0.007 | U40: 2 | V40: 0 | W40: 0 | X40: 1 | Y40: 2 | Z40: https://vk.com/wall-49388164_47604 | AA40: 1 | AB40: 12.55 | AC40: 1 | AD40: https://vk.com/rosmolodez?w=wall-49388164_48796 | AE40: 1 | AF40: 9.37 | AG40: 1 | AH40: https://vk.com/wall-49388164_45473 | AI40: 1 | AJ40: 16.98 | AK40: 1 | AL40: 1 | AM40: 1 | AN40: 1 | AO40: 19 | AP40: 12 | AQ40: 0.6315789474
A41: Росморречфлот | B41: 0 | C41: 0 | D41: - | E41: 4974 https://www.instagram.com/rosmorrechflot_russia/ | F41: 1 | G41: 0 | H41: 2 | I41: 0 | J41: 0 | K41: 0 | L41: 0 | M41: 0 | N41: 0 | O41: 0 | P41: 0 | Q41: 0 | R41: 0 | S41: 2.322 | T41: 0.008 | U41: 1 | V41: 0 | W41: 1 | X41: 1 | Y41: 0 | Z41: https://www.instagram.com/p/CMNAHYmgm0u/ | AA41: 1 | AB41: 15.78 | AC41: 1 | AD41: https://www.instagram.com/p/CKV7DZHLxPo/ | AE41: 1 | AF41: 22.76 | AG41: 1 | AH41: https://www.instagram.com/p/CIP7GsdghWO// | AI41: 1 | AJ41: 10.47 | AK41: 1 | AL41: 1 | AM41: 0 | AN41: 1 | AO41: 19 | AP41: 8 | AQ41: 0.4210526316
A42: Роснедра | B42: 77 https://vk.com/rosnedra.official | C42: 146 https://www.facebook.com/rosnedra.official | D42: - | E42: 392 https://www.instagram.com/rosnedra.official/ | F42: 1 | G42: 1 | H42: 2 | I42: 17.09601874 | J42: 1.616 | K42: 0 | L42: 13.33645297 | M42: 1.119 | N42: 0.008 | O42: 0 | P42: 0 | Q42: 0 | R42: 10.63829787 | S42: 2.53 | T42: 0.022 | U42: 2 | V42: 1 | W42: 0 | X42: 1 | Y42: 1 | Z42: https://vk.com/wall-191920100_219 | AA42: 1 | AB42: 3.66 | AC42: 1 | AD42: https://vk.com/wall-191920100_233 | AE42: 1 | AF42: 5.64 | AG42: 1 | AH42: https://vk.com/wall-191920100_186 | AI42: 1 | AJ42: 7.27 | AK42: 1 | AL42: 1 | AM42: 2 | AN42: 1 | AO42: 19 | AP42: 13 | AQ42: 0.6842105263
A43: Рособрнадзор | B43: 76 267 https://vk.com/obrnadzorru | C43: 12 245 https://www.facebook.com/rosobrnadzor/ | D43: - | E43: 68,6 тыс https://www.instagram.com/rosobrnadzor/ | F43: 1 | G43: 0 | H43: 2 | I43: 1.442175767 | J43: 0.67 | K43: 0.029 | L43: 1.252396203 | M43: 0.317 | N43: 0.003 | O43: 0 | P43: 0 | Q43: 0 | R43: 2.9262105 | S43: 0.516 | T43: 0.019 | U43: 2 | V43: 1 | W43: 1 | X43: 1 | Y43: 1 | Z43: https://vk.com/wall-36510627_29828 | AA43: 1 | AB43: 14.58 | AC43: 1 | AD43: https://vk.com/wall-36510627_29808 | AE43: 1 | AF43: 13.56 | AG43: 1 | AH43: https://vk.com/wall-36510627_31425 | AI43: 1 | AJ43: 15.17 | AK43: 1 | AL43: 1 | AM43: 1 | AN43: 1 | AO43: 19 | AP43: 12 | AQ43: 0.6315789474
A44: Роспатент | B44: 255 https://vk.com/rospatent_fips1 (не оценивалась) | C44: 4 569 https://www.facebook.com/rospatent/ | D44: - | E44: - | F44: 1 | G44: 1 | H44: 2 | I44: 0 | J44: 0 | K44: 0 | L44: 0 | M44: 0.752 | N44: 0.045 | O44: 0 | P44: 0 | Q44: 0 | R44: 0 | S44: 0 | T44: 0 | U44: 2 | V44: 2 | W44: 1 | X44: 1 | Y44: 2 | Z44: https://www.facebook.com/1651766101767384/posts/2764805960463387 | AA44: 0 | AB44: 15.59 | AC44: 1 | AD44: https://www.facebook.com/1651766101767384/posts/2783487341928582 | AE44: 0 | AF44: 15.36 | AG44: 1 | AH44: https://www.facebook.com/1651766101767384/posts/2840994079511241 | AI44: 0 | AJ44: 14.3 | AK44: 1 | AL44: 0 | AM44: 1 | AN44: 1 | AO44: 19 | AP44: 14 | AQ44: 0.7368421053
A45: Роспотребнадзор | B45: 87 702 https://vk.com/rospotrebnadzor.official | C45: 21 081 https://www.facebook.com/rpndzr | D45: 41 338 https://ok.ru/rospotrebnadzor.official | E45: 1 млн https://www.instagram.com/rospotrebnadzor.official/ | F45: 2 | G45: 1 | H45: 2 | I45: 0.5365876311 | J45: 0.341 | K45: 0.051 | L45: 0.3 | M45: 0.36 | N45: 0.121 | O45: 0.873570705 | P45: 0.341 | Q45: 0.051 | R45: 1.736242817 | S45: 0.405 | T45: 0.093 | U45: 2 | V45: 2 | W45: 1 | X45: 1 | Y45: 0 | Z45: https://vk.com/wall-193059638_1050 | AA45: 1 | AB45: 9.56 | AC45: 1 | AD45: https://vk.com/wall-193059638_3329 | AE45: 1 | AF45: 12.2 | AG45: 1 | AH45: https://vk.com/wall-193059638_4247 | AI45: 1 | AJ45: 15.83 | AK45: 1 | AL45: 1 | AM45: 1 | AN45: 1 | AO45: 19 | AP45: 14 | AQ45: 0.7368421053
A46: Росприроднадзор | B46: 17 568 https://vk.com/rpngov | C46: 11 208 https://www.facebook.com/Rosprirodnadzor.official/ | D46: 6914 https://ok.ru/group/55077981782194 | E46: 30,7 тыс https://www.instagram.com/rpngov/ | F46: 2 | G46: 1 | H46: 2 | I46: 0 | J46: 0.415 | K46: 0.043 | L46: 0 | M46: 0.301 | N46: 0.012 | O46: 0 | P46: 0.151 | Q46: 0.005 | R46: 0 | S46: 1.46 | T46: 0.039 | U46: 2 | V46: 2 | W46: 0 | X46: 1 | Y46: 0 | Z46: https://vk.com/wall-178990846_12348 | AA46: 1 | AB46: 9.73 | AC46: 1 | AD46: https://vk.com/wall-178990846_12213 | AE46: 1 | AF46: 8.89 | AG46: 1 | AH46: https://vk.com/wall-178990846_13516 | AI46: 1 | AJ46: 5.84 | AK46: 1 | AL46: 1 | AM46: 2 | AN46: 1 | AO46: 19 | AP46: 14 | AQ46: 0.7368421053
A47: Росреестр | B47: 52 220 https://vk.com/rosreestr_ru | C47: 4691 https://www.facebook.com/rosreestr.ru | D47: 1543 https://ok.ru/rosreestr.ru | E47: 11 057 https://www.instagram.com/rosreestr.ru/ | F47: 1 | G47: 1 | H47: 2 | I47: 1.388075878 | J47: 0.217 | K47: 0 | L47: 2.439165158 | M47: 0.561 | N47: 1.072 | O47: 7.344948443 | P47: 0.015 | Q47: 0.684 | R47: 4.62255367 | S47: 1.512 | T47: 0 | U47: 2 | V47: 2 | W47: 0 | X47: 1 | Y47: 2 | Z47: https://vk.com/wall-46688657_1790 | AA47: 1 | AB47: 15.36 | AC47: 1 | AD47: https://vk.com/wall-46688657_1753 | AE47: 1 | AF47: 11.13 | AG47: 1 | AH47: https://vk.com/wall-46688657_1672 | AI47: 1 | AJ47: 10.26 | AK47: 1 | AL47: 1 | AM47: 2 | AN47: 1 | AO47: 19 | AP47: 15 | AQ47: 0.7894736842
A48: Росрезерв | B48: 0 | C48: 0 | D48: 0 | E48: 0 | F48: 0 | G48: 0 | H48: 0 | I48: 0 | J48: 0 | K48: 0 | L48: 0 | M48: 0 | N48: 0 | O48: 0 | P48: 0 | Q48: 0 | R48: 0 | S48: 0 | T48: 0 | U48: 0 | V48: 0 | W48: 0 | X48: 0 | Y48: 0 | Z48: 0 | AA48: 0 | AB48: 0 | AC48: 0 | AD48: 0 | AE48: 0 | AF48: 0 | AG48: 0 | AH48: 0 | AI48: 0 | AJ48: 0 | AK48: 0 | AL48: 0 | AM48: 0 | AN48: 0 | AO48: 19 | AP48: 0 | AQ48: 0
A49: Росрыболовство | B49: 0 | C49: 1832 https://www.facebook.com/fish.gov.ru?fref=ts | D49: 0 | E49: 2093 https://www.instagram.com/fish.gov.ru/ | F49: 1 | G49: 1 | H49: 1 | I49: 0 | J49: 0 | K49: 0 | L49: 0 | M49: 0.611 | N49: 0.018 | O49: 0 | P49: 0 | Q49: 0 | R49: 0 | S49: 4.056 | T49: 0.028 | U49: 2 | V49: 1 | W49: 0 | X49: 1 | Y49: 0 | Z49: https://www.facebook.com/394922423854955/posts/5607171479296664 | AA49: 0 | AB49: 15.36 | AC49: 1 | AD49: https://www.facebook.com/394922423854955/posts/5305883176092164 | AE49: 0 | AF49: 14.03 | AG49: 1 | AH49: https://www.facebook.com/394922423854955/posts/5422367074443773 | AI49: 1 | AJ49: 11.32 | AK49: 1 | AL49: 0.3333333333 | AM49: 1 | AN49: 1 | AO49: 19 | AP49: 9.333333333 | AQ49: 0.4912280702
A50: Россельхознадзор | B50: 0 | C50: 75 https://www.facebook.com/fsvpsofficial/ | D50: 0 | E50: 805 https://www.instagram.com/fsvps.official/?hl=ru | F50: 1 | G50: 1 | H50: 2 | I50: 0 | J50: 0 | K50: 0 | L50: 0 | M50: 7.483 | N50: 0.131 | O50: 0 | P50: 0 | Q50: 0 | R50: 0 | S50: 3.027 | T50: 0.072 | U50: 2 | V50: 2 | W50: 0 | X50: 1 | Y50: 2 | Z50: https://www.facebook.com/109083321017513/posts/163109135614931 | AA50: 0 | AB50: 15.47 | AC50: 1 | AD50: https://www.facebook.com/109083321017513/posts/162302159028962 | AE50: 0 | AF50: 20.47 | AG50: 1 | AH50: https://www.facebook.com/109083321017513/posts/161665192425992 | AI50: 0 | AK50: 1 | AL50: 0 | AM50: 0 | AN50: 1 | AO50: 19 | AP50: 12 | AQ50: 0.6315789474
A51: Россотрудничество | B51: 8399 ( https://vk.com/rsgovru ) | C51: 31 751 ( https://www.facebook.com/rsgov/ ) | D51: 0 | E51: 12,2 тыс ( https://www.instagram.com/rsgov/ ) | F51: 1 | G51: 1 | H51: 2 | I51: 0 | J51: 0.261 | K51: 0.013 | L51: 0 | M51: 0.378 | N51: 0.014 | O51: 0 | P51: 0 | Q51: 0 | R51: 0 | S51: 1.301 | T51: 0.021 | U51: 2 | V51: 1 | W51: 1 | X51: 1 | Y51: 2 | Z51: https://www.facebook.com/rsgov/photos/a.420750617960319/3224214814280538/ | AA51: 1 | AB51: 10.62 | AC51: 1 | AD51: https://fb.watch/4zW3x531nB/ | AE51: 1 | AF51: 8.89 | AG51: 1 | AH51: https://www.facebook.com/rsgov/photos/a.420750617960319/3323489217686430/ | AI51: 1 | AJ51: 19.82 | AK51: 1 | AL51: 1 | AM51: 1 | AN51: 1 | AO51: 19 | AP51: 14 | AQ51: 0.7368421053
A52: Росстандарт | B52: 0 | C52: 1740 ( https://www.facebook.com/rosstandart ) | D52: 0 | E52: 3138 ( https://www.instagram.com/rosstandard/?igshid=1v6h3j2fjyi8u ) | F52: 1 | G52: 1 | H52: 2 | I52: 0 | J52: 0 | K52: 0 | L52: 0 | M52: 0.918 | N52: 0.012 | O52: 0 | P52: 0 | Q52: 0 | R52: 0 | S52: 4.368 | T52: 0.046 | W52: 0 | X52: 1 | Y52: 0 | Z52: https://www.instagram.com/p/CLwjzwzlDdT/?igshid=1oppu7vat7gwi | AA52: 1 | AB52: 9.5 | AC52: 1 | AD52: https://www.instagram.com/p/CJZA__iFIWh/?igshid=1vthcqhc3ci3s | AE52: 1 | AF52: 9.6 | AG52: 1 | AH52: https://www.instagram.com/p/CJbuiXeFrQY/?igshid=1xvgj2ppn054o | AI52: 1 | AJ52: 12.55 | AK52: 1 | AL52: 1 | AM52: 2 | AN52: 1 | AO52: 19 | AP52: 9 | AQ52: 0.4736842105
A53: Росстат | B53: 5888 ( https://vk.com/rosstatistika ) | C53: 1897 ( https://www.facebook.com/rosstatistika/ ) | D53: 365 ( https://ok.ru/group/56245432746155 ) страница не ведется с июля 2020 | E53: 0 | F53: 1 | G53: 1 | H53: 2 | I53: 3.530676838 | J53: 1.292 | K53: 0.068 | L53: 5.010484307 | M53: 1.821 | N53: 0.064 | O53: 0 | P53: 0 | Q53: 0 | R53: 0 | S53: 0 | T53: 0 | U53: 2 | V53: 2 | W53: 1 | X53: 1 | Y53: 1 | Z53: https://vk.com/wall-152641130_3435 | AA53: 1 | AB53: 5.94 | AC53: 1 | AD53: https://vk.com/wall-152641130_3562 | AE53: 1 | AF53: 12.55 | AG53: 1 | AH53: https://vk.com/wall-152641130_3217 | AI53: 1 | AJ53: 8.39 | AK53: 1 | AL53: 1 | AM53: 2 | AN53: 1 | AO53: 19 | AP53: 15 | AQ53: 0.7894736842
A54: Ростехнадзор | B54: 435 ( https://vk.com/rostechnadzor ) | C54: 1275 ( https://www.facebook.com/gosnadzor ) | D54: 0 | E54: 0 | F54: 1 | G54: 1 | H54: 2 | I54: 0 | J54: 1.909 | K54: 0.303 | L54: 0 | M54: 1.466 | N54: 0.019 | O54: 0 | P54: 0 | Q54: 0 | R54: 0 | S54: 0 | T54: 0 | U54: 2 | V54: 2 | W54: 1 | X54: 1 | Y54: 0 | Z54: https://www.facebook.com/gosnadzor/posts/2755502611379547 | AA54: 0 | AB54: 8.71 | AC54: 1 | AD54: https://www.facebook.com/gosnadzor/posts/2749552515307890 | AE54: 0 | AF54: 18.8 | AG54: 1 | AH54: https://www.facebook.com/gosnadzor/photos/a.1422261324703689/2630027553927054/ | AI54: 1 | AJ54: 19.04 | AK54: 1 | AL54: 0.3333333333 | AM54: 1 | AN54: 1 | AO54: 19 | AP54: 12.33333333 | AQ54: 0.649122807
A55: Ространснадзор | B55: 0 | C55: 219 ( https://www.facebook.com/Федеральная-служба-по-надзору-в-сфере-транспорта-587410111409306 ) Страница не актвина с 2018 года | D55: 0 | E55: 913 ( https://www.instagram.com/rostransnadzor.official/ ) | F55: 1 | G55: 0 | H55: 2 | I55: 0 | J55: 0 | K55: 0 | L55: 0 | M55: 0 | N55: 0 | O55: 0 | P55: 0 | Q55: 0 | R55: 0 | S55: 6.208 | T55: 0.006 | U55: 2 | V55: 0 | W55: 0 | X55: 1 | Y55: 0 | Z55: https://www.instagram.com/p/CLeuBfMBlyl/?igshid=1mpsyoqyn72c | AA55: 0 | AB55: 24.26 | AC55: 0 | AD55: https://www.instagram.com/p/CGhbc-DjVsh/?igshid=142mvor7a0ok33 | AE55: 1 | AF55: 16.59 | AG55: 0 | AH55: https://www.instagram.com/p/CIm0NpgBizp/?igshid=daprwg2va70h | AI55: 0 | AJ55: 21.16 | AK55: 0 | AL55: 0.3333333333 | AM55: 0 | AN55: 0 | AO55: 19 | AP55: 6.333333333 | AQ55: 0.3333333333
A56: Роструд | B56: 19725 ( https://vk.com/federal_slujba ) | C56: 5342 ( https://www.facebook.com/rostrud.info ) | D56: https://ok.ru/profile/591585191480 (Страница ведется как профиль, а не как группа) | E56: 4061 ( https://www.instagram.com/rostrud.official/?igshid=9jv2w7g8fs28 ) | F56: 3 | G56: 1 | H56: 2 | I56: 1.229 | J56: 0.254 | K56: 0.056 | L56: 4.459 | M56: 0.165 | N56: 0.017 | O56: 0 | P56: 0 | Q56: 0 | R56: 5.8176 | S56: 2.109 | T56: 0.179 | U56: 2 | V56: 2 | W56: 1 | X56: 2 | Y56: 1 | Z56: https://vk.com/wall-72147680_7889 | AA56: 1 | AB56: 7.27 | AC56: 1 | AD56: https://vk.com/wall-72147680_7821 | AE56: 0 | AF56: 22.03 | AG56: 1 | AH56: https://vk.com/wall-72147680_7737 | AI56: 1 | AJ56: 16.59 | AK56: 1 | AL56: 0.6666666667 | AM56: 1 | AN56: 1 | AO56: 19 | AP56: 16.66666667 | AQ56: 0.8771929825
A57: Ростуризм | B57: 10838 ( https://vk.com/rostourism.official ) | C57: 3478 ( https://www.facebook.com/rostourism.official/ ) | D57: 0 | E57: 0 | F57: 1 | G57: 1 | H57: 2 | I57: 0 | J57: 0.223 | K57: 0.063 | L57: 0 | M57: 1.855 | N57: 0.172 | O57: 0 | P57: 0 | Q57: 0 | R57: 0 | S57: 0 | T57: 0 | U57: 2 | V57: 2 | W57: 1 | X57: 1 | Y57: 0 | Z57: https://vk.com/wall-41862358_8577 | AA57: 0 | AB57: 10.13 | AC57: 1 | AD57: https://vk.com/wall-41862358_8562 | AE57: 0 | AF57: 14.95 | AG57: 1 | AH57: https://vk.com/wall-41862358_9434 | AI57: 1 | AJ57: 12.64 | AK57: 1 | AL57: 0.3333333333 | AM57: 1 | AN57: 1 | AO57: 19 | AP57: 12.33333333 | AQ57: 0.649122807
A58: Росфинмониторинг | B58: 0 | C58: 91 ( https://www.facebook.com/fedsfm ) | D58: 0 | E58: 600 ( https://www.instagram.com/fedsfm/ ) | F58: 2 | G58: 1 | H58: 2 | I58: 0 | J58: 0 | K58: 0 | L58: 0 | M58: 7.804 | N58: 0.052 | O58: 0 | P58: 0 | Q58: 0 | R58: 0 | S58: 4.299 | T58: 0.041 | U58: 2 | V58: 2 | W58: 0 | X58: 1 | Y58: 0 | Z58: https://www.instagram.com/p/CJbHaLTlSDu/?igshid=6jr1dt6llhol | AA58: 0 | AB58: 30.03 | AC58: 0 | AD58: https://www.instagram.com/p/CLWkO59lR7z/?igshid=19r07nha24s3v | AE58: 0 | AF58: 8.73 | AG58: 0 | AH58: https://www.instagram.com/p/CHFvX-fDnGr/?igshid=vagpr81fmbeg | AI58: 0 | AJ58: 16.76 | AK58: 0 | AL58: 0 | AM58: 0 | AN58: 0 | AO58: 19 | AP58: 10 | AQ58: 0.5263157895
A59: СВР России | B59: 0 | C59: 0 | D59: 0 | E59: 0 | F59: 0 | G59: 0 | H59: 0 | I59: 0 | J59: 0 | K59: 0 | L59: 0 | M59: 0 | N59: 0 | O59: 0 | P59: 0 | Q59: 0 | R59: 0 | S59: 0 | T59: 0 | U59: 0 | V59: 0 | W59: 0 | X59: 0 | Y59: 0 | Z59: 0 | AA59: 0 | AB59: 0 | AC59: 0 | AD59: 0 | AE59: 0 | AF59: 0 | AG59: 0 | AH59: 0 | AI59: 0 | AJ59: 0 | AK59: 0 | AL59: 0 | AM59: 0 | AN59: 0 | AO59: 19 | AP59: 0 | AQ59: 0
A60: Управление делами Президента Российской Федерации | B60: 0 | C60: 0 | D60: 0 | E60: 0 | F60: 0 | G60: 0 | H60: 0 | I60: 0 | J60: 0 | K60: 0 | L60: 0 | M60: 0 | N60: 0 | O60: 0 | P60: 0 | Q60: 0 | R60: 0 | S60: 0 | T60: 0 | U60: 0 | V60: 0 | W60: 0 | X60: 0 | Y60: 0 | Z60: 0 | AA60: 0 | AB60: 0 | AC60: 0 | AD60: 0 | AE60: 0 | AF60: 0 | AG60: 0 | AH60: 0 | AI60: 0 | AJ60: 0 | AK60: 0 | AL60: 0 | AM60: 0 | AN60: 0 | AO60: 19 | AP60: 0 | AQ60: 0
A61: ФАДН России | B61: 156 https://vk.com/domnarodovrf | C61: https://www.facebook.com/domnarodovrf/ | D61: 0 | E61: 6 587 https://www.instagram.com/fadn_rossii/ | F61: 2 | G61: 1 | H61: 0 | I61: 28.79365079 | J61: 5,963 | K61: 0.056 | L61: 11.68577982 | M61: 3.595 | N61: 0.053 | O61: 0 | P61: 0 | Q61: 0 | R61: 40.16402845 | S61: 1.578 | T61: 0 | U61: 2 | V61: 2 | W61: 0 | X61: 1 | Y61: 1 | Z61: https://www.instagram.com/p/CGSFjuLghFx/ | AA61: 0 | AB61: 14.49 | AC61: 1 | AD61: https://www.instagram.com/p/CJD-xFfALsA/ | AE61: 0 | AF61: 31.1 | AG61: 1 | AH61: https://www.instagram.com/p/CE6shxMggQ2/ | AI61: 1 | AJ61: 28.01 | AK61: 1 | AL61: 0.3333333333 | AM61: 0 | AN61: 1 | AO61: 19 | AP61: 10.33333333 | AQ61: 0.5438596491
A62: ФАС России | B62: 23 261 https://vk.com/fasrussia | C62: 10 923 https://www.facebook.com/fasrussia/ | D62: 976 https://ok.ru/fasrussia | E62: 30 700 https://www.instagram.com/fasrussia/ | F62: 3 | G62: 1 | H62: 2 | I62: 3.549437543 | J62: 0.177 | K62: 0.026 | L62: 1.982262453 | M62: 0.177 | N62: 0.022 | O62: 3.959561921 | P62: 0.272 | Q62: 0.027 | R62: 4.472942664 | S62: 0.708 | T62: 0.04 | U62: 2 | V62: 2 | W62: 1 | X62: 1 | Y62: 2 | Z62: https://vk.com/wall-54814053_26926 | AA62: 1 | AB62: 17.73 | AC62: 1 | AD62: https://vk.com/wall-54814053_25052 | AE62: 1 | AF62: 10.88 | AG62: 1 | AH62: https://vk.com/wall-54814053_25676 | AI62: 1 | AJ62: 10.88 | AK62: 1 | AL62: 1 | AM62: 1 | AN62: 1 | AO62: 19 | AP62: 17 | AQ62: 0.8947368421
A63: Федеральная пробирная палата | B63: 0 | C63: 0 | D63: 0 | E63: 0 | F63: 0 | G63: 0 | H63: 0 | I63: 0 | J63: 0 | K63: 0 | L63: 0 | M63: 0 | N63: 0 | O63: 0 | P63: 0 | Q63: 0 | R63: 0 | S63: 0 | T63: 0 | U63: 0 | V63: 0 | W63: 0 | X63: 0 | Y63: 0 | Z63: 0 | AA63: 0 | AB63: 0 | AC63: 0 | AD63: 0 | AE63: 0 | AF63: 0 | AG63: 0 | AH63: 0 | AI63: 0 | AJ63: 0 | AK63: 0 | AL63: 0 | AM63: 0 | AN63: 0 | AO63: 19 | AP63: 0 | AQ63: 0
A64: Федеральная служба судебных приставов (ФССП России) | B64: 74 825 https://vk.com/news_fssprus_ru | C64: 3 302 https://www.facebook.com/fsspinfo | D64: 406 https://ok.ru/group/60388814618863 | E64: 0 | F64: 1 | G64: 1 | H64: 2 | I64: 0.436 | J64: 0.018 | K64: 0 | L64: 3.151 | M64: 0.169 | N64: 0,009 | O64: 2.25028 | P64: 0,049 | Q64: 0 | R64: 0 | S64: 0 | T64: 0 | U64: 2 | V64: 0 | W64: 0 | X64: 0 | Y64: 0 | Z64: https://vk.com/wall-59564564_8675 | AA64: 0 | AB64: 13.21 | AC64: 1 | AD64: https://vk.com/wall-59564564_8875 | AE64: 1 | AF64: 14.03 | AG64: 1 | AH64: https://vk.com/wall-59564564_8880 | AI64: 1 | AJ64: 9.4 | AK64: 1 | AL64: 0.6666666667 | AM64: 2 | AN64: 1 | AO64: 19 | AP64: 9.666666667 | AQ64: 0.5087719298
A65: ФМБА России | B65: 0 | C65: 443 https://www.facebook.com/fmbaofrussia/ | D65: 0 | E65: 7 123 https://www.instagram.com/fmba_of_russia/?igshid=1r7pjyfd8zq9i | F65: 1 | G65: 0 | H65: 2 | I65: 0 | J65: 0 | K65: 0 | L65: 0 | M65: 1.165 | N65: 0.026 | O65: 0 | P65: 0 | Q65: 0 | R65: 0 | S65: 2.391 | T65: 0.015 | U65: 1 | V65: 1 | W65: 0 | X65: 1 | Y65: 0 | Z65: https://www.instagram.com/p/CLoAhs1ldTF/ | AA65: 1 | AB65: 11.91 | AC65: 1 | AD65: https://www.instagram.com/p/CGMxzuxplLf/ | AE65: 1 | AF65: 11.75 | AG65: 0 | AH65: https://www.instagram.com/p/CFufxh8JKQp/ | AI65: 1 | AJ65: 12.55 | AK65: 1 | AL65: 1 | AM65: 2 | AN65: 0.6666666667 | AO65: 19 | AP65: 9.666666667 | AQ65: 0.5087719298
A66: ФНС России | B66: 73 359 https://vk.com/nalog__ru | C66: 7 232 https://www.facebook.com/nalog.ru/ | D66: - | E66: - | F66: 1 | G66: 0 | H66: 2 | I66: 0.9690839725 | J66: 0.226 | K66: 0 | L66: 3.903554196 | M66: 0.958 | N66: 0.037 | O66: 0 | P66: 0 | Q66: 0 | R66: 0 | S66: 0 | T66: 0 | U66: 2 | V66: 2 | W66: 0 | X66: 0 | Y66: 0 | Z66: https://vk.com/wall-117654841_3069 | AA66: 0 | AB66: 13.21 | AC66: 1 | AD66: https://vk.com/wall-117654841_3071 | AE66: 0 | AF66: 13.08 | AG66: 1 | AH66: https://vk.com/wall-117654841_3070 | AI66: 0 | AJ66: 13.75 | AK66: 1 | AL66: 0 | AM66: 1 | AN66: 1 | AO66: 19 | AP66: 9 | AQ66: 0.4736842105
A67: ФСБ России | B67: 0 | C67: 0 | D67: 0 | E67: 0 | F67: 0 | G67: 0 | H67: 0 | I67: 0 | J67: 0 | K67: 0 | L67: 0 | M67: 0 | N67: 0 | O67: 0 | P67: 0 | Q67: 0 | R67: 0 | S67: 0 | T67: 0 | U67: 0 | V67: 0 | W67: 0 | X67: 0 | Y67: 0 | Z67: 0 | AA67: 0 | AB67: 0 | AC67: 0 | AD67: 0 | AE67: 0 | AF67: 0 | AG67: 0 | AH67: 0 | AI67: 0 | AJ67: 0 | AK67: 0 | AL67: 0 | AM67: 0 | AN67: 0 | AO67: 19 | AP67: 0 | AQ67: 0
A68: ФСВТС России | B68: 0 | C68: 0 | D68: 0 | E68: 0 | F68: 0 | G68: 0 | H68: 0 | I68: 0 | J68: 0 | K68: 0 | L68: 0 | M68: 0 | N68: 0 | O68: 0 | P68: 0 | Q68: 0 | R68: 0 | S68: 0 | T68: 0 | U68: 0 | V68: 0 | W68: 0 | X68: 0 | Y68: 0 | Z68: 0 | AA68: 0 | AB68: 0 | AC68: 0 | AD68: 0 | AE68: 0 | AF68: 0 | AG68: 0 | AH68: 0 | AI68: 0 | AJ68: 0 | AK68: 0 | AL68: 0 | AM68: 0 | AN68: 0 | AO68: 19 | AP68: 0 | AQ68: 0
A69: ФСИН России | B69: 0 | C69: 400 https://www.facebook.com/fsinrussia/ | D69: 0 | E69: 4 736 https://www.instagram.com/fsin.russia/ | F69: 1 | G69: 1 | H69: 1 | I69: 0 | J69: 0 | K69: 0 | L69: 5.114207729 | M69: 0.277 | N69: 0.028 | O69: 0 | P69: 0 | Q69: 0 | R69: 26.33582888 | S69: 9,677 | T69: 5.782 | U69: 2 | V69: 2 | W69: 0 | X69: 1 | Y69: 0 | Z69: https://www.instagram.com/p/CMt5jIQs97z/ | AA69: 1 | AB69: 12.83 | AC69: 1 | AD69: https://www.instagram.com/p/CLrHYGtFENN/ | AE69: 1 | AF69: 14.03 | AG69: 1 | AH69: https://www.instagram.com/p/CJYast_lsLs/ | AI69: 1 | AJ69: 8.44 | AK69: 1 | AL69: 1 | AM69: 1 | AN69: 1 | AO69: 19 | AP69: 11 | AQ69: 0.5789473684
A70: ФСО России | B70: 0 | C70: 0 | D70: 0 | E70: 0 | F70: 0 | G70: 0 | H70: 0 | I70: 0 | J70: 0 | K70: 0 | L70: 0 | M70: 0 | N70: 0 | O70: 0 | P70: 0 | Q70: 0 | R70: 0 | S70: 0 | T70: 0 | U70: 0 | V70: 0 | W70: 0 | X70: 0 | Y70: 0 | Z70: 0 | AA70: 0 | AB70: 0 | AC70: 0 | AD70: 0 | AE70: 0 | AF70: 0 | AG70: 0 | AH70: 0 | AI70: 0 | AJ70: 0 | AK70: 0 | AL70: 0 | AM70: 0 | AN70: 0 | AO70: 19 | AP70: 0 | AQ70: 0
A71: ФСТЭК России | B71: 0 | C71: 0 | D71: 0 | E71: 0 | F71: 0 | G71: 0 | H71: 0 | I71: 0 | J71: 0 | K71: 0 | L71: 0 | M71: 0 | N71: 0 | O71: 0 | P71: 0 | Q71: 0 | R71: 0 | S71: 0 | T71: 0 | U71: 0 | V71: 0 | W71: 0 | X71: 0 | Y71: 0 | Z71: 0 | AA71: 0 | AB71: 0 | AC71: 0 | AD71: 0 | AE71: 0 | AF71: 0 | AG71: 0 | AH71: 0 | AI71: 0 | AJ71: 0 | AK71: 0 | AL71: 0 | AM71: 0 | AN71: 0 | AO71: 19 | AP71: 0 | AQ71: 0
A72: ФТС России | B72: 2 109 https://vk.com/customs_rus | C72: 5 398 https://www.facebook.com/customsrf/ | D72: 0 | E72: 24 500 https://www.instagram.com/customs_rus/ | F72: 1 | G72: 1 | H72: 2 | I72: 6.935071575 | J72: 4.347 | K72: 0.069 | L72: 1.37857044 | M72: 1.679 | N72: 0.206 | O72: 0 | P72: 0 | Q72: 0 | R72: 10.46056221 | S72: 5.397 | T72: 0.065 | U72: 2 | V72: 2 | W72: 1 | X72: 1 | Y72: 2 | Z72: https://www.instagram.com/p/CLWBrH4JwAH/ | AA72: 1 | AB72: 19.15 | AC72: 1 | AD72: https://www.instagram.com/p/CGwhIlvp6DQ/ | AE72: 1 | AF72: 18.45 | AG72: 1 | AH72: https://www.instagram.com/p/BxPM4vlpm_j/ | AI72: 1 | AJ72: 6.06 | AK72: 1 | AL72: 1 | AM72: 1 | AN72: 1 | AO72: 19 | AP72: 15 | AQ72: 0.7894736842

Sheet Обществ_советы
A1: Ведомство | B1: Сайт | C1: Доступность и полнота информации о членах ОС | H1: Доступность и полнота информации о работе ОС | P1: Доступность коммуникации с членами ОС | S1: Степень независимости ОС от ФОИВ | Y1: Степень влияния ОС на деятельность ФОИВ | AB1: Степень активности ОС | AJ1: ИТОГ
B2: Наличие отдельного сайта либо раздела ОС | C2: Перечень лиц, входящих в текущий состав ОС | D2: Указание на организацию, должность лиц, входящих в состав ОС | E2: Краткие биографии всех членов ОС | F2: Фотографии лиц, входящих в состав ОС | G2: Контактная информация членов ОС | H2: Положение об ОС | I2: Наличие на сайте ведомства отдельной новостной ленты ОС | J2: План предстоящих заседаний ОС | K2: Повестки предстоящих заседаний ОС | L2: Протоколы и решения прошедших заседаний ОС | M2: Проводятся ли трансляции заседаний на сайте ОС или в соцсетях | N2: Наличие видеозаписей заседаний ОС | O2: Наличие информации о работе предыдущих составов ОС | P2: Текст правового акта, регламентирующий порядок участия в открытых заседаниях ОС | Q2: Возможность обращения в ОС через сайт или электронную почту | R2: Наличие на сайте или в соцсетях открытой дискуссионной площадки | S2: Наличие норм в Положении об ОС о формированиИ части состава ОС из представителей НКО | T2: Наличие общественных деятелей, представителей НКО в составе ОС | U2: Открытость и понятность процедуры формирования состава в Положении об ОС | V2: Наличие сообщений в новостных лентах ФОИВ и ОС о начале приема заявок в новый состав ОС | W2: Отсутствие в составе ОС сотрудников подведомственных организаций или зависимых организаций | X2: Сообщения в СМИ о нарушениях в работе ОС, о вмешательстве ФОИВ в работу ОС | Y2: Включение руководителя, заместителя руководителя ОС в состав коллегии ФОИВ | Z2: Участие руководителя ФОИВ в заседаниях ОС | AA2: Наличие на сайте ОС или ФОИВ реакции на рекомендации ОС | AB2: Частота заседаний ОС, проведенных в течение предыдущего года | AC2: Использование очных форматов заседаний | AD2: Присутствует ли в повестках или в протоколах ОС вопросы, поднятые по инициативе членов ОС | AE2: Направляются ли рекомендации ОС в адрес ФОИВ, его руководителя или заместителей | AF2: Выражали ли члены ОС позицию по вопросам деятельности ведомства в публичном пространстве | AG2: Присутствуют ли на заседаниях общественные организации, не представленные в составе ОС | AH2: Присутствуют ли на заседаниях представители СМИ | AI2: Наличие ежегодного формата публичной отчетности председателя ОС | AJ2: Итог | AK2: Максимум | AL2: Rate
A3: Главное управление специальных программ Президента Российской Федерации (ГУСП) | B3: - | C3: - | D3: - | E3: - | F3: - | G3: - | H3: - | I3: - | J3: - | K3: - | L3: - | M3: - | N3: - | O3: - | P3: - | Q3: - | R3: - | S3: - | T3: - | U3: - | V3: - | W3: - | X3: - | Y3: - | Z3: - | AA3: - | AB3: - | AC3: - | AD3: - | AE3: - | AF3: - | AG3: - | AH3: - | AI3: - | AJ3: - | AK3: - | AL3: -
A4: Государственная фельдъегерская служба Российской Федерации (ГФС России) | B4: - | C4: - | D4: - | E4: - | F4: - | G4: - | H4: - | I4: - | J4: - | K4: - | L4: - | M4: - | N4: - | O4: - | P4: - | Q4: - | R4: - | S4: - | T4: - | U4: - | V4: - | W4: - | X4: - | Y4: - | Z4: - | AA4: - | AB4: - | AC4: - | AD4: - | AE4: - | AF4: - | AG4: - | AH4: - | AI4: - | AJ4: - | AK4: - | AL4: -
A5: Казначейство России | B5: 1 | C5: 1 | D5: 2 | E5: 2 | F5: 1 | G5: 1 | H5: 1 | I5: 1 | J5: 0 | K5: 0 | L5: 2 | M5: 0 | N5: 0 | O5: 2 | P5: 1 | Q5: 1 | R5: 0 | S5: 1 | T5: 1 | U5: 3 | V5: 0 | W5: 1 | X5: 1 | Y5: 0 | Z5: 0 | AA5: 0 | AB5: 2 | AC5: 2 | AD5: 2 | AE5: 1 | AF5: 0 | AG5: 0 | AH5: 0 | AI5: 0 | AJ5: 30 | AK5: 55 | AL5: =AJ5/AK5 -> 0.5454545455
A6: МВД России | B6: 2 | C6: 1 | D6: 1 | E6: 1 | F6: 1 | G6: 0 | H6: 1 | I6: 2 | J6: 2 | K6: 1 | L6: 0 | M6: 0 | N6: 0 | O6: 2 | P6: 1 | Q6: 0 | R6: 0 | S6: 1 | T6: 1 | U6: 1 | V6: 0 | W6: 1 | X6: 1 | Y6: 0 | Z6: 2 | AA6: 0 | AB6: 0 | AC6: 0 | AD6: 1 | AE6: 0 | AF6: 1 | AG6: 0 | AH6: 0 | AI6: 1 | AJ6: 25 | AK6: 55 | AL6: =AJ6/AK6 -> 0.4545454545
A7: МИД России | B7: - | C7: - | D7: - | E7: - | F7: - | G7: - | H7: - | I7: - | J7: - | K7: - | L7: - | M7: - | N7: - | O7: - | P7: - | Q7: - | R7: - | S7: - | T7: - | U7: - | V7: - | W7: - | X7: - | Y7: - | Z7: - | AA7: - | AB7: - | AC7: - | AD7: - | AE7: - | AF7: - | AG7: - | AH7: - | AI7: - | AJ7: - | AK7: - | AL7: -
A8: Минвостокразвития России | B8: 1 | C8: 1 | D8: 1 | E8: 1 | F8: 1 | G8: 0 | H8: 1 | I8: 1 | J8: 0 | K8: 0 | L8: 2 | M8: 0 | N8: 0 | O8: 2 | P8: 1 | Q8: 1 | R8: 0 | S8: 1 | T8: 1 | U8: 3 | V8: 0 | W8: 1 | X8: 1 | Y8: 0 | Z8: 0 | AA8: 0 | AB8: 0 | AC8: 1 | AD8: 0 | AE8: 1 | AF8: 1 | AG8: 0 | AH8: 0 | AI8: 0 | AJ8: 23 | AK8: 55 | AL8: =AJ8/AK8 -> 0.4181818182
A9: Минздрав России | B9: 1 | C9: 1 | D9: 2 | E9: 2 | F9: 1 | G9: 0 | H9: 1 | I9: 0 | J9: 2 | K9: 0 | L9: 2 | M9: 0 | N9: 0 | O9: 1 | P9: 1 | Q9: 1 | R9: 0 | S9: 1 | T9: 1 | U9: 3 | V9: 1 | W9: 0 | X9: 1 | Y9: 0 | Z9: 1 | AA9: 0 | AB9: 2 | AC9: 1 | AD9: 1 | AE9: 0 | AF9: 0 | AG9: 0 | AH9: 0 | AI9: 0 | AJ9: 27 | AK9: 55 | AL9: =AJ9/AK9 -> 0.4909090909
A10: Минкультуры России | B10: 1 | C10: 1 | D10: 1 | E10: 0 | F10: 1 | G10: 1 | H10: 1 | I10: 2 | J10: 0 | K10: 1 | L10: 2 | M10: 0 | N10: 0 | O10: 2 | P10: 1 | Q10: 1 | R10: 0 | S10: 1 | T10: 1 | U10: 3 | V10: 0 | W10: 0 | X10: 1 | Y10: 1 | Z10: 0 | AA10: 1 | AB10: 2 | AC10: 2 | AD10: 1 | AE10: 1 | AF10: 0 | AG10: 0 | AH10: 0 | AI10: 0 | AJ10: 29 | AK10: 55 | AL10: =AJ10/AK10 -> 0.5272727273
A11: Минобороны России | B11: 1 | C11: 1 | D11: 2 | E11: 0 | F11: 0 | G11: 0 | H11: 1 | I11: 2 | J11: 2 | K11: 0 | L11: 0 | M11: 0 | N11: 0 | O11: 1 | P11: 1 | Q11: 1 | R11: 0 | S11: 0 | T11: 1 | U11: 0 | V11: 0 | W11: 1 | X11: 1 | Y11: 0 | Z11: 1 | AA11: 0 | AB11: 0 | AC11: 2 | AD11: 0 | AE11: 0 | AF11: 2 | AG11: 0 | AH11: 0 | AI11: 0 | AJ11: 20 | AK11: 55 | AL11: =AJ11/AK11 -> 0.3636363636
A12: Минобрнауки России | B12: 1 | C12: 1 | D12: 2 | E12: 0 | F12: 1 | G12: 0 | H12: 1 | I12: 2 | J12: 0 | K12: 0 | L12: 0 | M12: 0 | N12: 0 | O12: 2 | P12: 1 | Q12: 0 | R12: 0 | S12: 1 | T12: 1 | U12: 3 | V12: 2 | W12: 0 | X12: 1 | Y12: 0 | Z12: 2 | AA12: 0 | AB12: 0 | AC12: 2 | AD12: 0 | AE12: 1 | AF12: 0 | AG12: 0 | AH12: 0 | AI12: 0 | AJ12: 24 | AK12: 55 | AL12: =AJ12/AK12 -> 0.4363636364
A13: Минприроды России | B13: 1 | C13: 1 | D13: 2 | E13: 0 | F13: 1 | G13: 1 | H13: 1 | I13: 2 | J13: 2 | K13: 0 | L13: 2 | M13: 0 | N13: 0 | O13: 2 | P13: 1 | Q13: 0 | R13: 0 | S13: 1 | T13: 1 | U13: 3 | V13: 0 | W13: 1 | X13: 1 | Y13: 0 | Z13: 1 | AA13: 1 | AB13: 2 | AC13: 2 | AD13: 2 | AE13: 1 | AF13: 1 | AG13: 1 | AH13: 0 | AI13: 0 | AJ13: 34 | AK13: 55 | AL13: =AJ13/AK13 -> 0.6181818182
A14: Минпромторг России | B14: 1 | C14: 1 | D14: 2 | E14: 1 | F14: 1 | G14: 0 | H14: 1 | I14: 1 | J14: 0 | K14: 0 | L14: 0 | M14: 0 | N14: 0 | O14: 2 | P14: 1 | Q14: 1 | R14: 0 | S14: 1 | T14: 1 | U14: 3 | V14: 0 | W14: 0 | X14: 1 | Y14: 0 | Z14: 0 | AA14: 0 | AB14: 0 | AC14: 0 | AD14: 0 | AE14: 0 | AG14: 0 | AH14: 0 | AI14: 0 | AJ14: 18 | AK14: 55 | AL14: =AJ14/AK14 -> 0.3272727273
A15: Минпросвещения России | B15: 1 | C15: 1 | D15: 2 | E15: 0 | F15: 1 | G15: 0 | H15: 1 | I15: 2 | J15: 2 | K15: 2 | L15: 2 | M15: 0 | N15: 0 | O15: 2 | P15: 1 | Q15: 1 | R15: 0 | S15: 1 | T15: 1 | U15: 3 | V15: 2 | W15: 0 | X15: 1 | Y15: 0 | Z15: 1 | AA15: 0 | AB15: 0 | AC15: 2 | AD15: 2 | AE15: 0 | AF15: 1 | AG15: 0 | AH15: 0 | AI15: 0 | AJ15: 32 | AK15: 55 | AL15: =AJ15/AK15 -> 0.5818181818
A16: Минсельхоз России | B16: 1 | C16: 1 | D16: 2 | E16: 0 | F16: 1 | G16: 1 | H16: 1 | I16: 1 | J16: 2 | K16: 0 | L16: 2 | M16: 0 | N16: 0 | O16: 1 | P16: 1 | Q16: 1 | R16: 0 | S16: 1 | T16: 1 | U16: 3 | V16: 0 | W16: 1 | X16: 1 | Y16: 1 | Z16: 0 | AA16: 0 | AB16: 1 | AC16: 2 | AD16: 2 | AE16: 1 | AF16: 0 | AG16: 1 | AH16: 0 | AI16: 0 | AJ16: 30 | AK16: 55 | AL16: =AJ16/AK16 -> 0.5454545455
A17: Минспорт России | B17: 2 | C17: 1 | D17: 2 | E17: 0 | F17: 1 | G17: 0 | H17: 1 | I17: 2 | J17: 0 | K17: 1 | L17: 2 | M17: 1 | N17: 1 | O17: 2 | P17: 1 | Q17: 1 | R17: 0 | S17: 1 | T17: 1 | U17: 3 | V17: 1 | W17: 0 | X17: 1 | Y17: 1 | Z17: 0 | AA17: 1 | AB17: 1 | AC17: 2 | AD17: 1 | AE17: 1 | AF17: 1 | AG17: 1 | AH17: 0 | AI17: 0 | AJ17: 34 | AK17: 55 | AL17: =AJ17/AK17 -> 0.6181818182
A18: Минстрой России | B18: 2 | C18: 1 | D18: 2 | E18: 1 | F18: 1 | G18: 0 | H18: 1 | I18: 2 | J18: 1 | K18: 2 | L18: 2 | M18: 1 | N18: 1 | O18: 2 | P18: 2 | Q18: 1 | R18: 2 | S18: 1 | T18: 1 | U18: 3 | V18: 0 | W18: 1 | X18: 1 | Y18: 2 | Z18: 2 | AA18: 0 | AB18: 2 | AC18: 2 | AD18: 1 | AE18: 1 | AF18: 2 | AG18: 1 | AH18: 0 | AI18: 1 | AJ18: 45 | AK18: 55 | AL18: =AJ18/AK18 -> 0.8181818182
A19: Минтранс России | B19: 1 | C19: 1 | D19: 2 | E19: 1 | F19: 1 | G19: 0 | H19: 1 | I19: 1 | J19: 0 | K19: 1 | L19: 0 | M19: 0 | N19: 0 | O19: 2 | P19: 1 | Q19: 1 | R19: 0 | S19: 1 | T19: 1 | U19: 3 | V19: 0 | W19: 1 | X19: 1 | Y19: 2 | Z19: 0 | AA19: 0 | AB19: 0 | AC19: 2 | AD19: 0 | AE19: 0 | AF19: 1 | AG19: 0 | AH19: 0 | AI19: 0 | AJ19: 25 | AK19: 55 | AL19: =AJ19/AK19 -> 0.4545454545
A20: Минтруд России | B20: 1 | C20: 1 | D20: 2 | E20: 2 | F20: 1 | G20: 0 | H20: 1 | I20: 2 | J20: 0 | K20: 0 | L20: 2 | M20: 0 | N20: 0 | O20: 2 | P20: 1 | Q20: 1 | R20: 1 | S20: 1 | T20: 1 | U20: 3 | V20: 1 | W20: 1 | X20: 1 | Y20: 0 | Z20: 1 | AA20: 0 | AB20: 1 | AC20: 2 | AD20: 1 | AE20: 1 | AF20: 0 | AG20: 1 | AH20: 1 | AI20: 0 | AJ20: 33 | AK20: 55 | AL20: =AJ20/AK20 -> 0.6
A21: Минфин России | B21: 1 | C21: 1 | D21: 1 | E21: 0 | F21: 0 | G21: 0 | H21: 1 | I21: 1 | J21: 0 | K21: 1 | L21: 2 | M21: 0 | N21: 0 | O21: 2 | P21: 2 | Q21: 0 | R21: 0 | S21: 1 | T21: 1 | U21: 2 | V21: 1 | W21: 1 | X21: 1 | Y21: 0 | Z21: 0 | AA21: 1 | AB21: 2 | AC21: 0 | AD21: 0 | AE21: 1 | AF21: 0 | AG21: 0 | AH21: 0 | AI21: 0 | AJ21: 23 | AK21: 55 | AL21: =AJ21/AK21 -> 0.4181818182
A22: Минцифры России | B22: 1 | C22: 1 | D22: 1 | E22: 0 | F22: 0 | G22: 0 | H22: 1 | I22: 2 | J22: 1 | K22: 0 | L22: 2 | M22: 0 | N22: 0 | O22: 2 | P22: 1 | Q22: 1 | R22: 0 | S22: 1 | T22: 1 | U22: 3 | V22: 0 | W22: 1 | X22: 1 | Y22: 0 | Z22: 0 | AA22: 0 | AB22: 1 | AC22: 2 | AD22: 1 | AE22: 0 | AF22: 0 | AG22: 0 | AH22: 0 | AI22: 0 | AJ22: 24 | AK22: 55 | AL22: =AJ22/AK22 -> 0.4363636364
A23: Минэкономразвития России | B23: 2 | C23: 1 | D23: 2 | E23: 0 | F23: 1 | G23: 1 | H23: 1 | I23: 2 | J23: 1 | K23: 1 | L23: 2 | M23: 0 | N23: 0 | O23: 1 | P23: 2 | Q23: 1 | R23: 0 | S23: 1 | T23: 1 | U23: 3 | V23: 0 | W23: 0 | X23: 1 | Y23: 0 | Z23: 0 | AA23: 0 | AB23: 0 | AC23: 0 | AD23: 2 | AE23: 0 | AF23: 0 | AG23: 0 | AH23: 0 | AI23: 0 | AJ23: 26 | AK23: 55 | AL23: =AJ23/AK23 -> 0.4727272727
A24: Минэнерго России | B24: 1 | C24: 1 | D24: 1 | E24: 0 | F24: 1 | G24: 0 | H24: 1 | I24: 2 | J24: 1 | K24: 0 | L24: 2 | M24: 0 | N24: 0 | O24: 2 | P24: 1 | Q24: 1 | R24: 0 | S24: 1 | T24: 1 | U24: 3 | V24: 0 | W24: 1 | X24: 1 | Y24: 0 | Z24: 1 | AA24: 0 | AB24: 2 | AC24: 0 | AD24: 1 | AE24: 1 | AF24: 0 | AG24: 0 | AH24: 0 | AI24: 0 | AJ24: 26 | AK24: 55 | AL24: =AJ24/AK24 -> 0.4727272727
A25: Минюст России | B25: 1 | C25: 1 | D25: 2 | E25: 0 | F25: 0 | G25: 0 | H25: 1 | I25: 0 | J25: 0 | K25: 0 | L25: 0 | M25: 0 | N25: 0 | O25: 0 | P25: 0 | Q25: 1 | R25: 0 | S25: 1 | T25: 1 | U25: 0 | V25: 0 | W25: 1 | X25: 1 | Y25: 0 | Z25: 0 | AA25: 0 | AB25: 0 | AC25: 0 | AD25: 0 | AE25: 0 | AF25: 0 | AG25: 0 | AH25: 0 | AI25: 0 | AJ25: 10 | AK25: 55 | AL25: =AJ25/AK25 -> 0.1818181818
A26: МЧС России | B26: 1 | C26: 1 | D26: 0 | E26: 0 | F26: 0 | G26: 0 | H26: 1 | I26: 1 | J26: 2 | K26: 1 | L26: 2 | M26: 0 | N26: 0 | O26: 0 | P26: 1 | Q26: 0 | R26: 0 | S26: 0 | T26: 1 | U26: 2 | V26: 0 | W26: 1 | X26: 1 | Y26: 0 | Z26: 1 | AA26: 0 | AB26: 2 | AC26: 0 | AD26: 1 | AE26: 1 | AF26: 0 | AG26: 1 | AH26: 0 | AI26: 1 | AJ26: 22 | AK26: 55 | AL26: =AJ26/AK26 -> 0.4
A27: Росавиация | B27: 1 | C27: 1 | D27: 1 | E27: 0 | F27: 1 | G27: 0 | H27: 1 | I27: 1 | J27: 2 | K27: 0 | L27: 2 | M27: 0 | N27: 0 | O27: 2 | P27: 1 | Q27: 1 | R27: 0 | S27: 1 | T27: 1 | U27: 3 | V27: 0 | W27: 1 | X27: 1 | Y27: 0 | Z27: 1 | AA27: 0 | AB27: 1 | AC27: 2 | AD27: 1 | AE27: 1 | AF27: 2 | AG27: 1 | AH27: 0 | AI27: 0 | AJ27: 30 | AK27: 55 | AL27: =AJ27/AK27 -> 0.5454545455
A28: Росавтодор | B28: 2 | C28: 1 | D28: 2 | E28: 1 | F28: 1 | G28: 1 | H28: 1 | I28: 1 | J28: 0 | K28: 0 | L28: 0 | M28: 0 | N28: 0 | O28: 1 | P28: 2 | Q28: 1 | R28: 1 | S28: 1 | T28: 1 | U28: 3 | V28: 1 | W28: 1 | X28: 1 | Y28: 0 | Z28: 1 | AA28: 0 | AB28: 0 | AC28: 0 | AD28: 0 | AE28: 0 | AF28: 2 | AG28: 0 | AH28: 0 | AI28: 0 | AJ28: 26 | AK28: 55 | AL28: =AJ28/AK28 -> 0.4727272727
A29: Росаккредитация | B29: 1 | C29: 1 | D29: 1 | E29: 0 | F29: 0 | G29: 0 | H29: 1 | I29: 2 | J29: 1 | K29: 0 | L29: 2 | M29: 0 | N29: 0 | O29: 1 | P29: 1 | Q29: 1 | R29: 0 | S29: 1 | T29: 1 | U29: 3 | V29: 0 | W29: 1 | X29: 1 | Y29: 1 | Z29: 2 | AA29: 0 | AB29: 0 | AC29: 2 | AD29: 2 | AE29: 1 | AF29: 0 | AG29: 1 | AH29: 0 | AI29: 0 | AJ29: 28 | AK29: 55 | AL29: =AJ29/AK29 -> 0.5090909091
A30: Росалкогольрегулирование | B30: 1 | C30: 1 | D30: 1 | E30: 0 | F30: 0 | G30: 0 | H30: 1 | I30: 2 | J30: 0 | K30: 0 | L30: 2 | M30: 0 | N30: 0 | O30: 1 | P30: 1 | Q30: 1 | R30: 0 | S30: 1 | T30: 1 | U30: 3 | V30: 0 | W30: 1 | X30: 1 | Y30: 0 | Z30: 0 | AA30: 0 | AB30: 1 | AC30: 1 | AD30: 2 | AE30: 1 | AF30: 2 | AG30: 1 | AH30: 0 | AI30: 0 | AJ30: 26 | AK30: 55 | AL30: =AJ30/AK30 -> 0.4727272727
A31: Росархив | B31: 1 | C31: 1 | D31: 2 | E31: 0 | F31: 1 | G31: 1 | H31: 1 | I31: 2 | J31: 1 | K31: 2 | L31: 2 | M31: 1 | N31: 1 | O31: 0 | P31: 1 | Q31: 1 | R31: 0 | S31: 0 | T31: 0 | U31: 1 | V31: 0 | W31: 1 | X31: 1 | Y31: 1 | Z31: 1 | AA31: 0 | AB31: 1 | AC31: 2 | AD31: 1 | AE31: 1 | AF31: 0 | AG31: 0 | AH31: 0 | AI31: 1 | AJ31: 29 | AK31: 55 | AL31: =AJ31/AK31 -> 0.5272727273
A32: Росводресурсы | B32: 1 | C32: 1 | D32: 2 | E32: 0 | F32: 1 | G32: 0 | H32: 1 | I32: 1 | J32: 2 | K32: 0 | L32: 0 | M32: 0 | N32: 0 | O32: 2 | P32: 1 | Q32: 0 | R32: 0 | S32: 1 | T32: 1 | U32: 3 | V32: 0 | W32: 1 | X32: 1 | Y32: 0 | Z32: 0 | AA32: 0 | AB32: 2 | AC32: 1 | AD32: 2 | AE32: 0 | AF32: 2 | AG32: 1 | AH32: 0 | AI32: 0 | AJ32: 27 | AK32: 55 | AL32: =AJ32/AK32 -> 0.4909090909
A33: Росгвардия | B33: - | C33: - | D33: - | E33: - | F33: - | G33: - | H33: - | I33: - | J33: - | K33: - | L33: - | M33: - | N33: - | O33: - | P33: - | Q33: - | R33: - | S33: - | T33: - | U33: - | V33: - | W33: - | X33: - | Y33: - | Z33: - | AA33: - | AB33: - | AC33: - | AD33: - | AE33: - | AF33: - | AG33: - | AH33: - | AI33: - | AJ33: - | AK33: - | AL33: -
A34: Росгидромет | B34: 1 | C34: 1 | D34: 1 | E34: 0 | F34: 0 | G34: 0 | H34: 1 | I34: 2 | J34: 1 | K34: 2 | L34: 2 | M34: 0 | N34: 0 | O34: 1 | P34: 1 | Q34: 1 | R34: 0 | S34: 1 | T34: 1 | U34: 3 | V34: 0 | W34: 0 | X34: 1 | Y34: 2 | Z34: 1 | AA34: 1 | AB34: 2 | AC34: 2 | AD34: 2 | AE34: 1 | AF34: 0 | AG34: 1 | AH34: 0 | AI34: 1 | AJ34: 33 | AK34: 55 | AL34: =AJ34/AK34 -> 0.6
A35: Росжелдор | B35: 1 | C35: 1 | D35: 2 | E35: 2 | F35: 1 | G35: 0 | H35: 1 | I35: 1 | J35: 0 | K35: 0 | L35: 0 | M35: 0 | N35: 0 | O35: 0 | P35: 1 | Q35: 1 | R35: 0 | S35: 1 | T35: 0 | U35: 3 | V35: 0 | W35: 0 | X35: 1 | Y35: 2 | Z35: 0 | AA35: 0 | AB35: 0 | AC35: 0 | AD35: 0 | AE35: 0 | AF35: 0 | AG35: 0 | AH35: 0 | AI35: 0 | AJ35: 18 | AK35: 55 | AL35: =AJ35/AK35 -> 0.3272727273
A36: Росздравнадзор | B36: 1 | C36: 1 | D36: 1 | E36: 0 | F36: 0 | G36: 0 | H36: 1 | I36: 0 | J36: 0 | K36: 0 | L36: 0 | M36: 0 | N36: 0 | O36: 2 | P36: 1 | Q36: 0 | R36: 0 | S36: 1 | T36: 1 | U36: 3 | V36: 0 | W36: 1 | X36: 1 | Y36: 0 | Z36: 0 | AA36: 0 | AB36: 0 | AC36: 0 | AD36: 0 | AE36: 0 | AF36: 0 | AG36: 0 | AH36: 0 | AI36: 0 | AJ36: 14 | AK36: 55 | AL36: =AJ36/AK36 -> 0.2545454545
A37: Росимущество | B37: 1 | C37: 1 | D37: 2 | E37: 1 | F37: 1 | G37: 0 | H37: 1 | I37: 2 | J37: 0 | K37: 0 | L37: 1 | M37: 0 | N37: 0 | O37: 2 | P37: 1 | Q37: 1 | R37: 0 | S37: 1 | T37: 1 | U37: 3 | V37: 2 | W37: 0 | X37: 1 | Y37: 0 | Z37: 0 | AA37: 0 | AB37: 0 | AC37: 0 | AD37: 0 | AE37: 0 | AF37: 0 | AG37: 0 | AH37: 0 | AI37: 0 | AJ37: 22 | AK37: 55 | AL37: =AJ37/AK37 -> 0.4
A38: Роскомнадзор | B38: 1 | C38: 1 | D38: 1 | E38: 0 | F38: 0 | G38: 0 | H38: 1 | I38: 0 | J38: 0 | K38: 0 | L38: 0 | M38: 0 | N38: 0 | O38: 2 | P38: 1 | Q38: 1 | R38: 0 | S38: 1 | T38: 1 | U38: 3 | V38: 0 | W38: 1 | X38: 1 | Y38: 0 | Z38: 0 | AA38: 0 | AB38: 0 | AC38: 0 | AD38: 0 | AE38: 0 | AF38: 0 | AG38: 0 | AH38: 0 | AI38: 0 | AJ38: 15 | AK38: 55 | AL38: =AJ38/AK38 -> 0.2727272727
A39: Рослесхоз | B39: 1 | C39: 1 | D39: 1 | E39: 0 | F39: 0 | G39: 0 | H39: 1 | I39: 1 | J39: 0 | K39: 0 | L39: 2 | M39: 0 | N39: 0 | O39: 2 | P39: 1 | Q39: 1 | R39: 0 | S39: 1 | T39: 1 | U39: 3 | V39: 0 | W39: 1 | X39: 0 | Y39: 0 | Z39: 1 | AA39: 0 | AB39: 2 | AC39: 2 | AD39: 2 | AE39: 1 | AF39: 1 | AG39: 1 | AH39: 0 | AI39: 0 | AJ39: 27 | AK39: 55 | AL39: =AJ39/AK39 -> 0.4909090909
A40: Росмолодежь | B40: 1 | C40: 1 | D40: 1 | E40: 0 | F40: 1 | G40: 1 | H40: 1 | I40: 1 | J40: 0 | K40: 0 | L40: 2 | M40: 0 | N40: 0 | O40: 1 | P40: 1 | Q40: 1 | R40: 0 | S40: 1 | T40: 1 | U40: 3 | V40: 0 | W40: 1 | X40: 1 | Y40: 0 | Z40: 1 | AA40: 0 | AB40: 0 | AC40: 0 | AD40: 0 | AE40: 0 | AF40: 0 | AG40: 0 | AH40: 0 | AI40: 0 | AJ40: 20 | AK40: 55 | AL40: =AJ40/AK40 -> 0.3636363636
A41: Росморречфлот | B41: 1 | C41: 1 | D41: 2 | E41: 0 | F41: 0 | G41: 0 | H41: 1 | I41: 0 | J41: 0 | K41: 1 | L41: 1 | M41: 1 | N41: 0 | O41: 2 | P41: 1 | Q41: 0 | R41: 0 | S41: 1 | T41: 1 | U41: 3 | V41: 0 | W41: 1 | X41: 1 | Y41: 1 | Z41: 0 | AA41: 0 | AB41: 0 | AC41: 0 | AD41: 0 | AE41: 0 | AF41: 0 | AG41: 0 | AH41: 0 | AI41: 0 | AJ41: 19 | AK41: 55 | AL41: =AJ41/AK41 -> 0.3454545455
A42: Роснедра | B42: 1 | C42: 1 | D42: 1 | E42: 0 | F42: 0 | G42: 0 | H42: 1 | I42: 1 | J42: 0 | K42: 1 | L42: 2 | M42: 0 | N42: 0 | O42: 2 | P42: 1 | Q42: 1 | R42: 0 | S42: 1 | T42: 1 | U42: 3 | V42: 0 | W42: 0 | X42: 1 | Y42: 0 | Z42: 1 | AA42: 1 | AB42: 0 | AC42: 1 | AD42: 2 | AE42: 1 | AF42: 1 | AG42: 0 | AH42: 0 | AI42: 0 | AJ42: 25 | AK42: 55 | AL42: =AJ42/AK42 -> 0.4545454545
A43: Рособрнадзор | B43: 1 | C43: 1 | D43: 2 | E43: 0 | F43: 0 | G43: 0 | H43: 1 | I43: 0 | J43: 2 | K43: 0 | L43: 0 | M43: 0 | N43: 0 | O43: 0 | P43: 1 | Q43: 1 | R43: 0 | S43: 1 | T43: 1 | U43: 3 | V43: 0 | W43: 1 | X43: 1 | Y43: 0 | Z43: 2 | AA43: 0 | AB43: 0 | AC43: 0 | AD43: 0 | AE43: 0 | AF43: 0 | AG43: 0 | AH43: 0 | AI43: 0 | AJ43: 18 | AK43: 55 | AL43: =AJ43/AK43 -> 0.3272727273
A44: Роспатент | B44: 1 | C44: 1 | D44: 2 | E44: 2 | F44: 1 | G44: 1 | H44: 1 | I44: 2 | J44: 0 | K44: 2 | L44: 1 | M44: 1 | N44: 1 | O44: 1 | P44: 1 | Q44: 1 | R44: 0 | S44: 1 | T44: 1 | U44: 3 | V44: 0 | W44: 1 | X44: 1 | Y44: 0 | Z44: 2 | AA44: 0 | AB44: 1 | AC44: 2 | AD44: 0 | AE44: 1 | AF44: 0 | AG44: 0 | AH44: 0 | AI44: 0 | AJ44: 32 | AK44: 55 | AL44: =AJ44/AK44 -> 0.5818181818
A45: Роспотребнадзор | B45: 1 | C45: 1 | D45: 2 | E45: 0 | F45: 1 | G45: 1 | H45: 1 | I45: 1 | J45: 2 | K45: 1 | L45: 2 | M45: 0 | N45: 0 | O45: 2 | P45: 1 | Q45: 0 | R45: 0 | S45: 1 | T45: 1 | U45: 3 | V45: 0 | W45: 1 | X45: 1 | Y45: 0 | Z45: 0 | AA45: 0 | AB45: 1 | AC45: 2 | AD45: 1 | AE45: 1 | AF45: 0 | AG45: 1 | AH45: 0 | AI45: 0 | AJ45: 29 | AK45: 55 | AL45: =AJ45/AK45 -> 0.5272727273
A46: Росприроднадзор | B46: 1 | C46: 1 | D46: 1 | E46: 0 | F46: 0 | G46: 0 | H46: 1 | I46: 1 | J46: 0 | K46: 0 | L46: 2 | M46: 0 | N46: 0 | O46: 0 | P46: 1 | Q46: 1 | R46: 0 | S46: 1 | T46: 1 | U46: 3 | V46: 0 | W46: 1 | X46: 1 | Y46: 0 | Z46: 0 | AA46: 0 | AB46: 0 | AC46: 0 | AD46: 0 | AE46: 1 | AF46: 2 | AG46: 0 | AH46: 0 | AI46: 0 | AJ46: 19 | AK46: 55 | AL46: =AJ46/AK46 -> 0.3454545455
A47: Росреестр | B47: 1 | C47: 1 | D47: 2 | E47: 2 | F47: 1 | G47: 1 | H47: 1 | I47: 0 | J47: 2 | K47: 1 | L47: 2 | M47: 0 | N47: 0 | O47: 2 | P47: 2 | Q47: 1 | R47: 0 | S47: 1 | T47: 1 | U47: 3 | V47: 1 | W47: 1 | X47: 1 | Y47: 1 | Z47: 2 | AA47: 0 | AB47: 0 | AC47: 2 | AD47: 1 | AE47: 1 | AF47: 0 | AG47: 0 | AH47: 0 | AI47: 0 | AJ47: 34 | AK47: 55 | AL47: =AJ47/AK47 -> 0.6181818182
A48: Росрезерв | B48: - | C48: - | D48: - | E48: - | F48: - | G48: - | H48: - | I48: - | J48: - | K48: - | L48: - | M48: - | N48: - | O48: - | P48: - | Q48: - | R48: - | S48: - | T48: - | U48: - | V48: - | W48: - | X48: - | Y48: - | Z48: - | AA48: - | AB48: - | AC48: - | AD48: - | AE48: - | AF48: - | AG48: - | AH48: - | AI48: - | AJ48: - | AK48: - | AL48: -
A49: Росрыболовство | B49: 1 | C49: 1 | D49: 2 | E49: 0 | F49: 0 | G49: 0 | H49: 1 | I49: 2 | J49: 2 | K49: 2 | L49: 2 | M49: 0 | N49: 0 | O49: 1 | P49: 1 | Q49: 1 | R49: 0 | S49: 1 | T49: 1 | U49: 3 | V49: 2 | W49: 0 | X49: 1 | Y49: 0 | Z49: 1 | AA49: 1 | AB49: 2 | AC49: 2 | AD49: 2 | AE49: 1 | AF49: 2 | AG49: 1 | AH49: 0 | AI49: 1 | AJ49: 37 | AK49: 55 | AL49: =AJ49/AK49 -> 0.6727272727
A50: Россельхознадзор | B50: 1 | C50: 1 | D50: 2 | E50: 2 | F50: 1 | G50: 1 | H50: 1 | I50: 2 | J50: 0 | K50: 2 | L50: 2 | M50: 0 | N50: 0 | O50: 2 | P50: 2 | Q50: 1 | R50: 0 | S50: 1 | T50: 1 | U50: 3 | V50: 1 | W50: 1 | X50: 1 | Y50: 0 | Z50: 1 | AA50: 1 | AB50: 2 | AC50: 1 | AD50: 1 | AE50: 1 | AF50: 0 | AG50: 1 | AH50: 0 | AI50: 0 | AJ50: 36 | AK50: 55 | AL50: =AJ50/AK50 -> 0.6545454545
A51: Россотрудничество | B51: 0 | C51: 0 | D51: 0 | E51: 0 | F51: 0 | G51: 0 | H51: 0 | I51: 0 | J51: 0 | K51: 0 | L51: 0 | M51: 0 | N51: 0 | O51: 0 | P51: 0 | Q51: 0 | R51: 0 | S51: 0 | T51: 0 | U51: 0 | V51: 0 | W51: 0 | X51: 0 | Y51: 0 | Z51: 0 | AA51: 0 | AB51: 0 | AC51: 0 | AD51: 0 | AE51: 0 | AF51: 0 | AG51: 0 | AH51: 0 | AI51: 0 | AJ51: 0 | AK51: 55 | AL51: =AJ51/AK51 -> 0
A52: Росстандарт | B52: 1 | C52: 1 | D52: 1 | E52: 0 | F52: 0 | G52: 0 | H52: 1 | I52: 1 | J52: 1 | K52: 0 | L52: 2 | M52: 0 | N52: 0 | O52: 0 | P52: 1 | Q52: 1 | R52: 0 | S52: 1 | T52: 1 | U52: 3 | V52: 0 | W52: 1 | X52: 1 | Y52: 2 | Z52: 1 | AA52: 0 | AB52: 0 | AC52: 2 | AD52: 2 | AE52: 1 | AF52: 0 | AG52: 1 | AH52: 0 | AI52: 0 | AJ52: 26 | AK52: 55 | AL52: =AJ52/AK52 -> 0.4727272727
A53: Росстат | B53: 1 | C53: 1 | D53: 2 | E53: 2 | F53: 1 | G53: 1 | H53: 1 | I53: 2 | J53: 2 | K53: 2 | L53: 2 | M53: 0 | N53: 1 | O53: 2 | P53: 1 | Q53: 1 | R53: 0 | S53: 1 | T53: 1 | U53: 3 | V53: 2 | W53: 1 | X53: 1 | Y53: 0 | Z53: 2 | AA53: 1 | AB53: 2 | AC53: 2 | AD53: 2 | AE53: 1 | AF53: 2 | AG53: 1 | AH53: 1 | AI53: 0 | AJ53: 45 | AK53: 55 | AL53: =AJ53/AK53 -> 0.8181818182
A54: Ростехнадзор | B54: 1 | C54: 1 | D54: 2 | E54: 0 | F54: 1 | G54: 0 | H54: 1 | I54: 1 | J54: 2 | K54: 2 | L54: 2 | M54: 0 | N54: 0 | O54: 0 | P54: 1 | Q54: 1 | R54: 0 | S54: 1 | T54: 1 | U54: 3 | V54: 0 | W54: 0 | X54: 1 | Y54: 1 | Z54: 2 | AA54: 1 | AB54: 0 | AC54: 2 | AD54: 0 | AE54: 1 | AF54: 0 | AG54: 1 | AH54: 0 | AI54: 0 | AJ54: 29 | AK54: 55 | AL54: =AJ54/AK54 -> 0.5272727273
A55: Ространснадзор | B55: 1 | C55: 1 | D55: 1 | E55: 0 | F55: 0 | G55: 0 | H55: 1 | I55: 0 | J55: 0 | K55: 2 | L55: 1 | M55: 0 | N55: 0 | O55: 2 | P55: 1 | Q55: 1 | R55: 0 | S55: 1 | T55: 1 | U55: 3 | V55: 0 | W55: 1 | X55: 1 | Y55: 2 | Z55: 0 | AA55: 0 | AB55: 1 | AC55: 1 | AD55: 0 | AE55: 0 | AF55: 1 | AG55: 0 | AH55: 0 | AI55: 0 | AJ55: 23 | AK55: 55 | AL55: =AJ55/AK55 -> 0.4181818182
A56: Роструд | B56: 1 | C56: 1 | D56: 1 | E56: 2 | F56: 1 | G56: 1 | H56: 1 | I56: 2 | J56: 1 | K56: 1 | L56: 2 | M56: 0 | N56: 0 | O56: 1 | P56: 1 | Q56: 1 | R56: 0 | S56: 1 | T56: 1 | U56: 3 | V56: 0 | W56: 1 | X56: 1 | Y56: 0 | Z56: 2 | AA56: 0 | AB56: 1 | AC56: 2 | AD56: 0 | AE56: 1 | AF56: 0 | AG56: 0 | AH56: 0 | AI56: 1 | AJ56: 31 | AK56: 55 | AL56: =AJ56/AK56 -> 0.5636363636
A57: Ростуризм | B57: 2 | C57: 1 | D57: 1 | E57: 1 | F57: 1 | G57: 0 | H57: 1 | I57: 1 | J57: 1 | K57: 0 | L57: 0 | M57: 0 | N57: 0 | O57: 2 | P57: 1 | Q57: 1 | R57: 0 | S57: 1 | T57: 1 | U57: 3 | V57: 0 | W57: 1 | X57: 1 | Y57: 0 | Z57: 0 | AA57: 0 | AB57: 0 | AC57: 0 | AD57: 0 | AE57: 0 | AF57: 2 | AG57: 0 | AH57: 0 | AI57: 0 | AJ57: 22 | AK57: 55 | AL57: =AJ57/AK57 -> 0.4
A58: Росфинмониторинг | B58: - | C58: - | D58: - | E58: - | F58: - | G58: - | H58: - | I58: - | J58: - | K58: - | L58: - | M58: - | N58: - | O58: - | P58: - | Q58: - | R58: - | S58: - | T58: - | U58: - | V58: - | W58: - | X58: - | Y58: - | Z58: - | AA58: - | AB58: - | AC58: - | AD58: - | AE58: - | AF58: - | AG58: - | AH58: - | AI58: - | AJ58: - | AK58: - | AL58: -
A59: СВР России | B59: - | C59: - | D59: - | E59: - | F59: - | G59: - | H59: - | I59: - | J59: - | K59: - | L59: - | M59: - | N59: - | O59: - | P59: - | Q59: - | R59: - | S59: - | T59: - | U59: - | V59: - | W59: - | X59: - | Y59: - | Z59: - | AA59: - | AB59: - | AC59: - | AD59: - | AE59: - | AF59: - | AG59: - | AH59: - | AI59: - | AJ59: - | AK59: - | AL59: -
A60: Управление делами Президента Российской Федерации | B60: 1 | C60: 1 | D60: 2 | E60: 0 | F60: 0 | G60: 0 | H60: 1 | I60: 0 | J60: 0 | K60: 0 | L60: 1 | M60: 0 | N60: 0 | O60: 0 | P60: 1 | Q60: 0 | R60: 0 | S60: 1 | T60: 1 | U60: 1 | V60: 0 | W60: 1 | X60: 1 | Y60: 0 | Z60: 0 | AA60: 0 | AB60: 0 | AC60: 0 | AD60: 0 | AE60: 0 | AF60: 0 | AG60: 0 | AH60: 0 | AI60: 0 | AJ60: 12 | AK60: 55 | AL60: =AJ60/AK60 -> 0.2181818182
A61: ФАДН России | B61: 1 | C61: 1 | D61: 1 | E61: 0 | F61: 0 | G61: 0 | H61: 1 | I61: 0 | J61: 0 | K61: 0 | L61: 1 | M61: 0 | N61: 0 | O61: 0 | P61: 1 | Q61: 0 | R61: 0 | S61: 1 | T61: 0 | U61: 3 | V61: 0 | W61: 1 | X61: 1 | Y61: 0 | Z61: 0 | AA61: 0 | AB61: 0 | AC61: 0 | AD61: 0 | AE61: 0 | AF61: 0 | AG61: 0 | AH61: 0 | AI61: 0 | AJ61: 12 | AK61: 55 | AL61: =AJ61/AK61 -> 0.2181818182
A62: ФАС России | B62: 2 | C62: 1 | D62: 1 | E62: 0 | F62: 1 | G62: 1 | H62: 1 | I62: 2 | J62: 0 | K62: 1 | L62: 2 | M62: 0 | N62: 0 | O62: 2 | P62: 1 | Q62: 1 | R62: 0 | S62: 1 | T62: 1 | U62: 3 | V62: 2 | W62: 1 | X62: 1 | Y62: 0 | Z62: 0 | AA62: 0 | AB62: 0 | AC62: 0 | AD62: 0 | AE62: 1 | AF62: 0 | AG62: 1 | AH62: 0 | AI62: 0 | AJ62: 27 | AK62: 55 | AL62: =AJ62/AK62 -> 0.4909090909
A63: Федеральная пробирная палата | B63: 0 | C63: 0 | D63: 0 | E63: 0 | F63: 0 | G63: 0 | H63: 0 | I63: 0 | J63: 0 | K63: 0 | L63: 0 | M63: 0 | N63: 0 | O63: 0 | P63: 0 | Q63: 0 | R63: 0 | S63: 0 | T63: 0 | U63: 0 | V63: 1 | W63: 0 | X63: 0 | Y63: 0 | Z63: 0 | AA63: 0 | AB63: 0 | AC63: 0 | AD63: 0 | AE63: 0 | AF63: 0 | AG63: 0 | AH63: 0 | AI63: 0 | AJ63: 1 | AK63: 55 | AL63: =AJ63/AK63 -> 0.01818181818
A64: ФМБА России | B64: 1 | C64: 1 | D64: 1 | E64: 0 | F64: 0 | G64: 0 | H64: 1 | I64: 1 | J64: 0 | K64: 0 | L64: 1 | M64: 0 | N64: 0 | O64: 0 | P64: 1 | Q64: 1 | R64: 0 | S64: 1 | T64: 1 | U64: 3 | V64: 0 | W64: 1 | X64: 1 | Y64: 1 | Z64: 2 | AA64: 0 | AB64: 0 | AC64: 0 | AD64: 0 | AE64: 0 | AF64: 0 | AG64: 0 | AH64: 0 | AI64: 0 | AJ64: 18 | AK64: 55 | AL64: =AJ64/AK64 -> 0.3272727273
A65: ФНС России | B65: 1 | C65: 1 | D65: 2 | E65: 2 | F65: 1 | G65: 0 | H65: 1 | I65: 1 | J65: 1 | K65: 0 | L65: 2 | M65: 0 | N65: 0 | O65: 2 | P65: 1 | Q65: 1 | R65: 0 | S65: 1 | T65: 1 | U65: 3 | V65: 1 | W65: 1 | X65: 1 | Y65: 1 | Z65: 1 | AA65: 0 | AB65: 1 | AC65: 1 | AD65: 1 | AE65: 1 | AF65: 1 | AG65: 1 | AH65: 0 | AI65: 0 | AJ65: 32 | AK65: 55 | AL65: =AJ65/AK65 -> 0.5818181818
A66: ФСБ России | B66: - | C66: - | D66: - | E66: - | F66: - | G66: - | H66: - | I66: - | J66: - | K66: - | L66: - | M66: - | N66: - | O66: - | P66: - | Q66: - | R66: - | S66: - | T66: - | U66: - | V66: - | W66: - | X66: - | Y66: - | Z66: - | AA66: - | AB66: - | AC66: - | AD66: - | AE66: - | AF66: - | AG66: - | AH66: - | AI66: - | AJ66: - | AK66: - | AL66: -
A67: ФСВТС России | B67: - | C67: - | D67: - | E67: - | F67: - | G67: - | H67: - | I67: - | J67: - | K67: - | L67: - | M67: - | N67: - | O67: - | P67: - | Q67: - | R67: - | S67: - | T67: - | U67: - | V67: - | W67: - | X67: - | Y67: - | Z67: - | AA67: - | AB67: - | AC67: - | AD67: - | AE67: - | AF67: - | AG67: - | AH67: - | AI67: - | AJ67: - | AK67: - | AL67: -
A68: ФСИН России | B68: 1 | C68: 1 | D68: 2 | E68: 0 | F68: 0 | G68: 0 | H68: 1 | I68: 2 | J68: 0 | K68: 0 | L68: 1 | M68: 0 | N68: 0 | O68: 2 | P68: 0 | Q68: 1 | R68: 0 | S68: 1 | T68: 1 | U68: 2 | V68: 0 | W68: 0 | X68: 0 | Y68: 0 | Z68: 2 | AA68: 0 | AB68: 0 | AC68: 0 | AD68: 0 | AE68: 1 | AF68: 1 | AG68: 0 | AH68: 1 | AI68: 1 | AJ68: 21 | AK68: 55 | AL68: =AJ68/AK68 -> 0.3818181818
A69: ФСО России | B69: - | C69: - | D69: - | E69: - | F69: - | G69: - | H69: - | I69: - | J69: - | K69: - | L69: - | M69: - | N69: - | O69: - | P69: - | Q69: - | R69: - | S69: - | T69: - | U69: - | V69: - | W69: - | X69: - | Y69: - | Z69: - | AA69: - | AB69: - | AC69: - | AD69: - | AE69: - | AF69: - | AG69: - | AH69: - | AI69: - | AJ69: - | AK69: - | AL69: -
A70: ФССП России | B70: 2 | C70: 1 | D70: 2 | E70: 0 | F70: 1 | G70: 1 | H70: 1 | I70: 1 | J70: 1 | K70: 1 | L70: 2 | M70: 0 | N70: 0 | O70: 2 | P70: 1 | Q70: 0 | R70: 0 | S70: 1 | T70: 1 | U70: 0 | V70: 0 | W70: 1 | X70: 1 | Y70: 2 | Z70: 2 | AA70: 0 | AB70: 0 | AC70: 0 | AD70: 1 | AE70: 1 | AF70: 0 | AG70: 0 | AH70: 0 | AI70: 1 | AJ70: 27 | AK70: 55 | AL70: =AJ70/AK70 -> 0.4909090909
A71: ФСТЭК России | B71: - | C71: - | D71: - | E71: - | F71: - | G71: - | H71: - | I71: - | J71: - | K71: - | L71: - | M71: - | N71: - | O71: - | P71: - | Q71: - | R71: - | S71: - | T71: - | U71: - | V71: - | W71: - | X71: - | Y71: - | Z71: - | AA71: - | AB71: - | AC71: - | AD71: - | AE71: - | AF71: - | AG71: - | AH71: - | AI71: - | AJ71: - | AK71: - | AL71: -
A72: ФТС России | B72: 1 | C72: 1 | D72: 2 | E72: 0 | F72: 0 | G72: 0 | H72: 1 | I72: 1 | J72: 1 | K72: 0 | L72: 0 | M72: 0 | N72: 0 | O72: 1 | P72: 1 | Q72: 0 | R72: 0 | S72: 1 | T72: 1 | U72: 3 | V72: 0 | W72: 1 | X72: 1 | Y72: 0 | Z72: 2 | AA72: 0 | AB72: 0 | AC72: 0 | AD72: 0 | AE72: 1 | AF72: 0 | AG72: 1 | AH72: 0 | AI72: 0 | AJ72: 20 | AK72: 55 | AL72: =AJ72/AK72 -> 0.3636363636
